Workbook

Sheet Баланс энергии
A1: Заполняется в тыс. кВт.ч. !
A3: Баланс электрической энергии по сетям ВН, СН1, СН2, и НН
AF4: тыс. кВт.ч.
A5: № п.п. | B5: Показатели | C5: Принято регулирующим органом на 2020 год | H5: Факт за 2020 год | M5: Принято регулирующим органом на 2021 год | R5: По данным организации на 2022 год | W5: По данным организации на 1 полугодие 2022 года | AB5: По данным организации на 2 полугодие 2022 года | AG5: По данным экспертов на 2022 год | AL5: По данным экспертов на 1 полугодие 2022 года | AQ5: По данным экспертов на 2 полугодие 2022 года
C6: Всего | D6: ВН | E6: СН1 | F6: СН2 | G6: НН | H6: Всего | I6: ВН | J6: СН1 | K6: СН2 | L6: НН | M6: Всего | N6: ВН | O6: СН1 | P6: СН2 | Q6: НН | R6: Всего | S6: ВН | T6: СН1 | U6: СН2 | V6: НН | W6: Всего | X6: ВН | Y6: СН1 | Z6: СН2 | AA6: НН | AB6: Всего | AC6: ВН | AD6: СН1 | AE6: СН2 | AF6: НН | AG6: Всего | AH6: ВН | AI6: СН1 | AJ6: СН2 | AK6: НН | AL6: Всего | AM6: ВН | AN6: СН1 | AO6: СН2 | AP6: НН | AQ6: Всего | AR6: ВН | AS6: СН1 | AT6: СН2 | AU6: НН
A7: 1 | B7: 2 | C7: 3 | D7: 4 | E7: 5 | F7: 6 | G7: 7 | H7: 18 | I7: 19 | J7: 20 | K7: 21 | L7: 22 | M7: 33 | N7: 34 | O7: 35 | P7: 36 | Q7: 37 | R7: 48 | S7: 49 | T7: 50 | U7: 51 | V7: 52 | W7: 53 | X7: 54 | Y7: 55 | Z7: 56 | AA7: 57 | AB7: 58 | AC7: 59 | AD7: 60 | AE7: 61 | AF7: 62 | AG7: 63 | AH7: 64 | AI7: 65 | AJ7: 66 | AK7: 67 | AL7: 53 | AM7: 54 | AN7: 55 | AO7: 56 | AP7: 57 | AQ7: 58 | AR7: 59 | AS7: 60 | AT7: 61 | AU7: 62
A8: 1. | B8: Поступление эл.энергии в сеть , ВСЕГО | C8: =C18+C20+C21 -> 141286.4154 | D8: =D14+D15+D16+D17 -> 140446.8133 | E8: =E9+E14+E15+E16+E17 -> 839.6021404 | F8: =F9+F14+F15+F16+F17 -> 141286.4154 | G8: =G9+G14+G15+G16+G17 -> 62461.89491 | H8: =H18+H20+H21 -> 0 | I8: =I14+I15+I16+I17 -> 0 | J8: =J9+J14+J15+J16+J17 -> 0 | K8: =K9+K14+K15+K16+K17 -> 0 | L8: =L9+L14+L15+L16+L17 -> 0 | M8: =M18+M20+M21 -> 138485.138 | N8: =N14+N15+N16+N17 -> 137663.3054 | O8: =O9+O14+O15+O16+O17 -> 821.8325816 | P8: =P9+P14+P15+P16+P17 -> 138485.138 | Q8: =Q9+Q14+Q15+Q16+Q17 -> 61082.70897 | R8: =R18+R20+R21 -> 135269.605 | S8: =S14+S15+S16+S17 -> 134374.693 | T8: =T9+T14+T15+T16+T17 -> 894.912 | U8: =U9+U14+U15+U16+U17 -> 135269.605 | V8: =V9+V14+V15+V16+V17 -> 61720.38837 | W8: =W18+W20+W21 -> 68205.155 | X8: =X14+X15+X16+X17 -> 67757.7 | Y8: =Y9+Y14+Y15+Y16+Y17 -> 447.455 | Z8: =Z9+Z14+Z15+Z16+Z17 -> 68205.155 | AA8: =AA9+AA14+AA15+AA16+AA17 -> 30772.93694 | AB8: =AB18+AB20+AB21 -> 67064.44 | AC8: =AC14+AC15+AC16+AC17 -> 66616.99 | AD8: =AD9+AD14+AD15+AD16+AD17 -> 447.45 | AE8: =AE9+AE14+AE15+AE16+AE17 -> 67064.44 | AF8: =AF9+AF14+AF15+AF16+AF17 -> 29496.85405 | AG8: =AG18+AG20+AG21 -> 0 | AH8: =AH14+AH15+AH16+AH17 -> 0 | AI8: =AI9+AI14+AI15+AI16+AI17 -> 0 | AJ8: =AJ9+AJ14+AJ15+AJ16+AJ17 -> 0 | AK8: =AK9+AK14+AK15+AK16+AK17 -> 0 | AL8: =AL18+AL20+AL21 -> 0 | AM8: =AM14+AM15+AM16+AM17 -> 0 | AN8: =AN9+AN14+AN15+AN16+AN17 -> 0 | AO8: =AO9+AO14+AO15+AO16+AO17 -> 0 | AP8: =AP9+AP14+AP15+AP16+AP17 -> 0 | AQ8: =AQ18+AQ20+AQ21 -> 0 | AR8: =AR14+AR15+AR16+AR17 -> 0 | AS8: =AS9+AS14+AS15+AS16+AS17 -> 0 | AT8: =AT9+AT14+AT15+AT16+AT17 -> 0 | AU8: =AU9+AU14+AU15+AU16+AU17 -> 0
A9: 1.1. | B9: из смежной сети, всего | C9: х | D9: х | E9: =E11 -> 0 | F9: =F11+F12 -> 141286.4154 | G9: =G11+G12+G13 -> 62461.89491 | H9: х | I9: х | J9: =J11 -> 0 | K9: =K11+K12 -> 0 | L9: =L11+L12+L13 -> 0 | M9: х | N9: х | O9: =O11 -> 0 | P9: =P11+P12 -> 138485.138 | Q9: =Q11+Q12+Q13 -> 61082.70897 | R9: х | S9: х | T9: =T11 -> 0 | U9: =U11+U12 -> 135269.605 | V9: =V11+V12+V13 -> 61720.38837 | W9: х | X9: х | Y9: =Y11 -> 0 | Z9: =Z11+Z12 -> 68205.155 | AA9: =AA11+AA12+AA13 -> 30772.93694 | AB9: х | AC9: х | AD9: =AD11 -> 0 | AE9: =AE11+AE12 -> 67064.44 | AF9: =AF11+AF12+AF13 -> 29496.85405 | AG9: х | AH9: х | AI9: =AI11 -> 0 | AJ9: =AJ11+AJ12 -> 0 | AK9: =AK11+AK12+AK13 -> 0 | AL9: х | AM9: х | AN9: =AN11 -> 0 | AO9: =AO11+AO12 -> 0 | AP9: =AP11+AP12+AP13 -> 0 | AQ9: х | AR9: х | AS9: =AS11 -> 0 | AT9: =AT11+AT12 -> 0 | AU9: =AU11+AU12+AU13 -> 0
B10: в том числе из сети | C10: х | D10: х | E10: х | F10: х | G10: х | H10: х | I10: х | J10: х | K10: х | L10: х | M10: х | N10: х | O10: х | P10: х | Q10: х | R10: х | S10: х | T10: х | U10: х | V10: х | W10: х | X10: х | Y10: х | Z10: х | AA10: х | AB10: х | AC10: х | AD10: х | AE10: х | AF10: х | AG10: х | AH10: х | AI10: х | AJ10: х | AK10: х | AL10: х | AM10: х | AN10: х | AO10: х | AP10: х | AQ10: х | AR10: х | AS10: х | AT10: х | AU10: х
A11: 1.1.1. | B11: ВН | C11: х | D11: х | F11: =D8-D18-D20-D21-E11-G11 -> 140446.8133 | H11: х | I11: х | K11: =I8-I18-I20-I21-J11-L11 -> 0 | M11: х | N11: х | P11: =N8-N18-N20-N21-O11-Q11 -> 137663.3054 | R11: х | S11: х | U11: =S8-S18-S20-S21-T11-V11 -> 134374.693 | W11: х | X11: х | Z11: =X8-X18-X20-X21-Y11-AA11 -> 67757.7 | AB11: х | AC11: х | AE11: =AC8-AC18-AC20-AC21-AD11-AF11 -> 66616.99 | AG11: х | AH11: х | AJ11: =AH8-AH18-AH20-AH21-AI11-AK11 -> 0 | AL11: х | AM11: х | AO11: =AM8-AM18-AM20-AM21-AN11-AP11 -> 0 | AQ11: х | AR11: х | AT11: =AR8-AR18-AR20-AR21-AS11-AU11 -> 0
A12: 1.1.2. | B12: СН1 | C12: х | D12: х | E12: х | F12: =E8-E18-E20-E21-G12 -> 839.6021404 | H12: х | I12: х | J12: х | K12: =J8-J18-J20-J21-L12 -> 0 | M12: х | N12: х | O12: х | P12: =O8-O18-O20-O21-Q12 -> 821.8325816 | R12: х | S12: х | T12: х | U12: =T8-T18-T20-T21-V12 -> 894.912 | W12: х | X12: х | Y12: х | Z12: =Y8-Y18-Y20-Y21-AA12 -> 447.455 | AB12: х | AC12: х | AD12: х | AE12: =AD8-AD18-AD20-AD21-AF12 -> 447.45 | AG12: х | AH12: х | AI12: х | AJ12: =AI8-AI18-AI20-AI21-AK12 -> 0 | AL12: х | AM12: х | AN12: х | AO12: =AN8-AN18-AN20-AN21-AP12 -> 0 | AQ12: х | AR12: х | AS12: х | AT12: =AS8-AS18-AS20-AS21-AU12 -> 0
A13: 1.1.3. | B13: СН2 | C13: х | D13: х | E13: х | F13: х | G13: =F8-F18-F20-F21 -> 62461.89491 | H13: х | I13: х | J13: х | K13: х | L13: =K8-K18-K20-K21 -> 0 | M13: х | N13: х | O13: х | P13: х | Q13: =P8-P18-P20-P21 -> 61082.70897 | R13: х | S13: х | T13: х | U13: х | V13: =U8-U18-U20-U21 -> 61720.38837 | W13: х | X13: х | Y13: х | Z13: х | AA13: =Z8-Z18-Z20-Z21 -> 30772.93694 | AB13: х | AC13: х | AD13: х | AE13: х | AF13: =AE8-AE18-AE20-AE21 -> 29496.85405 | AG13: х | AH13: х | AI13: х | AJ13: х | AK13: =AJ8-AJ18-AJ20-AJ21 -> 0 | AL13: х | AM13: х | AN13: х | AO13: х | AP13: =AO8-AO18-AO20-AO21 -> 0 | AQ13: х | AR13: х | AS13: х | AT13: х | AU13: =AT8-AT18-AT20-AT21 -> 0
A14: 1.2. | B14: от электростанций | C14: =SUM(D14:G14) -> 0 | H14: =SUM(I14:L14) -> 0 | M14: =SUM(N14:Q14) -> 0 | R14: =SUM(S14:V14) -> 0 | W14: =SUM(X14:AA14) -> 0 | AB14: =SUM(AC14:AF14) -> 0 | AG14: =SUM(AH14:AK14) -> 0 | AL14: =SUM(AM14:AP14) -> 0 | AQ14: =SUM(AR14:AU14) -> 0
A15: 1.3. | B15: от ОАО "ФСК ЕЭС" | C15: =SUM(D15:G15) -> 140446.8133 | D15: 140446.8133 | H15: =SUM(I15:L15) -> 0 | M15: =SUM(N15:Q15) -> 137663.3054 | N15: 137663.3054 | O15: 0 | R15: =SUM(S15:V15) -> 134374.693 | S15: 134374.693 | W15: =SUM(X15:AA15) -> 67757.7 | X15: 67757.7 | AB15: =SUM(AC15:AF15) -> 66616.99 | AC15: 66616.99 | AG15: =SUM(AH15:AK15) -> 0 | AL15: =SUM(AM15:AP15) -> 0 | AQ15: =SUM(AR15:AU15) -> 0
A16: 1.4. | B16: от филиала "Владимирэнерго" ОАО "МРСК Центра и Приволжья" | C16: =SUM(D16:G16) -> 839.6021404 | E16: 839.6021404 | H16: =SUM(I16:L16) -> 0 | M16: =SUM(N16:Q16) -> 821.8325816 | N16: 0 | O16: 821.8325816 | R16: =SUM(S16:V16) -> 894.912 | T16: 894.912 | W16: =SUM(X16:AA16) -> 447.455 | Y16: 447.455 | AB16: =SUM(AC16:AF16) -> 447.45 | AD16: 447.45 | AG16: =SUM(AH16:AK16) -> 0 | AL16: =SUM(AM16:AP16) -> 0 | AQ16: =SUM(AR16:AU16) -> 0
A17: 1.5. | B17: от других сетевых организаций | C17: =SUM(D17:G17) -> 0 | H17: =SUM(I17:L17) -> 0 | M17: =SUM(N17:Q17) -> 0 | R17: =SUM(S17:V17) -> 0 | W17: =SUM(X17:AA17) -> 0 | AB17: =SUM(AC17:AF17) -> 0 | AG17: =SUM(AH17:AK17) -> 0 | AL17: =SUM(AM17:AP17) -> 0 | AQ17: =SUM(AR17:AU17) -> 0
A18: 2. | B18: Потери электроэнергии в сети | C18: =SUM(D18:G18) -> 16389.2 | D18: =D8*D19/100 -> 0 | E18: =E8*E19/100 -> 0 | F18: =F8*F19/100 -> 8717.37183 | G18: =G8*G19/100 -> 7671.82817 | H18: =SUM(I18:L18) -> 0 | I18: =I8*I19/100 -> 0 | J18: =J8*J19/100 -> 0 | K18: =K8*K19/100 -> 0 | L18: =L8*L19/100 -> 0 | M18: =SUM(N18:Q18) -> 16064.3 | N18: =N8*N19/100 -> 0 | O18: =O8*O19/100 -> 0 | P18: =P8*P19/100 -> 8544.533014 | Q18: =Q8*Q19/100 -> 7519.766986 | R18: =SUM(S18:V18) -> 15690.86084 | S18: =S8*S19/100 -> 0 | T18: =T8*T19/100 -> 0 | U18: =U8*U19/100 -> 8346.134628 | V18: =V8*V19/100 -> 7344.726216 | W18: =SUM(X18:AA18) -> 7913.319671 | X18: =X8*X19/100 -> 0 | Y18: =Y8*Y19/100 -> 0 | Z18: =Z8*Z19/100 -> 4208.258063 | AA18: =AA8*AA19/100 -> 3705.061607 | AB18: =SUM(AC18:AF18) -> 7777.787738 | AC18: =AC8*AC19/100 -> 0 | AD18: =AD8*AD19/100 -> 0 | AE18: =AE8*AE19/100 -> 4137.875948 | AF18: =AF8*AF19/100 -> 3639.91179 | AG18: =SUM(AH18:AK18) -> 0 | AH18: =AH8*AH19/100 -> 0 | AI18: =AI8*AI19/100 -> 0 | AJ18: =AJ8*AJ19/100 -> 0 | AK18: =AK8*AK19/100 -> 0 | AL18: =SUM(AM18:AP18) -> 0 | AM18: =AM8*AM19/100 -> 0 | AN18: =AN8*AN19/100 -> 0 | AO18: =AO8*AO19/100 -> 0 | AP18: =AP8*AP19/100 -> 0 | AQ18: =SUM(AR18:AU18) -> 0 | AR18: =AR8*AR19/100 -> 0 | AS18: =AS8*AS19/100 -> 0 | AT18: =AT8*AT19/100 -> 0 | AU18: =AU8*AU19/100 -> 0
A19: 2.1. | B19: то же в % (п.2./п.1.) | C19: =IF(C8=0,0,C18/C8*100) -> 11.59998288 | F19: 6.17 | G19: 12.28241343 | H19: =IF(H8=0,0,H18/H8*100) -> 0 | M19: =IF(M8=0,0,M18/M8*100) -> 11.60001733 | P19: 6.17 | Q19: 12.31079484 | R19: =IF(R8=0,0,R18/R8*100) -> 11.59969444 | U19: 6.17 | V19: 11.9 | W19: =IF(W8=0,0,W18/W8*100) -> 11.60223105 | Z19: 6.17 | AA19: 12.04 | AB19: =IF(AB8=0,0,AB18/AB8*100) -> 11.59748406 | AE19: 6.17 | AF19: 12.34 | AG19: =IF(AG8=0,0,AG18/AG8*100) -> 0 | AL19: =IF(AL8=0,0,AL18/AL8*100) -> 0 | AQ19: =IF(AQ8=0,0,AQ18/AQ8*100) -> 0
A20: 3. | B20: Расход электроэнергии на производственные и хознужды | C20: =SUM(D20:G20) -> 0 | H20: =SUM(I20:L20) -> 0 | M20: =SUM(N20:Q20) -> 0 | R20: =SUM(S20:V20) -> 0 | W20: =SUM(X20:AA20) -> 0 | AB20: =SUM(AC20:AF20) -> 0 | AG20: =SUM(AH20:AK20) -> 0 | AL20: =SUM(AM20:AP20) -> 0 | AQ20: =SUM(AR20:AU20) -> 0
A21: 4. | B21: Полезный отпуск из сети | C21: =SUM(D21:G21) -> 124897.2154 | D21: =D22+D23+D24 -> 0 | E21: =E22+E23+E24 -> 0 | F21: =F22+F23+F24 -> 70107.14866 | G21: =G8-G18-G20 -> 54790.06674 | H21: =SUM(I21:L21) -> 0 | I21: =I22+I23+I24 -> 0 | J21: =J22+J23+J24 -> 0 | K21: =K22+K23+K24 -> 0 | L21: =L8-L18-L20 -> 0 | M21: =SUM(N21:Q21) -> 122420.838 | N21: =N22+N23+N24 -> 0 | O21: =O22+O23+O24 -> 0 | P21: =P22+P23+P24 -> 68857.896 | Q21: =Q8-Q18-Q20 -> 53562.94198 | R21: =SUM(S21:V21) -> 119578.7442 | S21: =S22+S23+S24 -> 0 | T21: =T22+T23+T24 -> 0 | U21: =U22+U23+U24 -> 65203.082 | V21: =V8-V18-V20 -> 54375.66216 | W21: =SUM(X21:AA21) -> 60291.83533 | X21: =X22+X23+X24 -> 0 | Y21: =Y22+Y23+Y24 -> 0 | Z21: =Z22+Z23+Z24 -> 33223.96 | AA21: =AA8-AA18-AA20 -> 27067.87533 | AB21: =SUM(AC21:AF21) -> 59286.65226 | AC21: =AC22+AC23+AC24 -> 0 | AD21: =AD22+AD23+AD24 -> 0 | AE21: =AE22+AE23+AE24 -> 33429.71 | AF21: =AF8-AF18-AF20 -> 25856.94226 | AG21: =SUM(AH21:AK21) -> 0 | AH21: =AH22+AH23+AH24 -> 0 | AI21: =AI22+AI23+AI24 -> 0 | AJ21: =AJ22+AJ23+AJ24 -> 0 | AK21: =AK8-AK18-AK20 -> 0 | AL21: =SUM(AM21:AP21) -> 0 | AM21: =AM22+AM23+AM24 -> 0 | AN21: =AN22+AN23+AN24 -> 0 | AO21: =AO22+AO23+AO24 -> 0 | AP21: =AP8-AP18-AP20 -> 0 | AQ21: =SUM(AR21:AU21) -> 0 | AR21: =AR22+AR23+AR24 -> 0 | AS21: =AS22+AS23+AS24 -> 0 | AT21: =AT22+AT23+AT24 -> 0 | AU21: =AU8-AU18-AU20 -> 0
A22: 4.1. | B22: потребителям, присоединенным к сети | C22: =SUM(D22:G22) -> 123827.7201 | F22: 69037.6534 | G22: 54790.06674 | H22: =SUM(I22:L22) -> 0 | M22: =SUM(N22:Q22) -> 119409.4795 | P22: 65846.53748 | Q22: 53562.94198 | R22: =SUM(S22:V22) -> 117967.462 | U22: 63591.802 | V22: 54375.66 | W22: =SUM(X22:AA22) -> 59486.2 | Z22: 32418.32 | AA22: 27067.88 | AB22: =SUM(AC22:AF22) -> 58481.01 | AE22: 32624.07 | AF22: 25856.94 | AG22: =SUM(AH22:AK22) -> 0 | AL22: =SUM(AM22:AP22) -> 0 | AQ22: =SUM(AR22:AU22) -> 0
A23: 4.2. | B23: переток в филиал "Владимирэнерго" ОАО "МРСК Центра и Приволжья" | C23: =SUM(D23:G23) -> 1069.495265 | F23: 1069.495265 | G23: 0 | H23: =SUM(I23:L23) -> 0 | M23: =SUM(N23:Q23) -> 2987.403983 | P23: 2987.403983 | Q23: 0 | R23: =SUM(S23:V23) -> 1611.28 | U23: 1611.28 | W23: =SUM(X23:AA23) -> 805.64 | Z23: 805.64 | AB23: =SUM(AC23:AF23) -> 805.64 | AE23: 805.64 | AG23: =SUM(AH23:AK23) -> 0 | AL23: =SUM(AM23:AP23) -> 0 | AQ23: =SUM(AR23:AU23) -> 0
A24: 4.3. | B24: переток в другие сетевые организации | C24: =SUM(D24:G24) -> 0 | H24: =SUM(I24:L24) -> 0 | M24: =SUM(N24:Q24) -> 23.95453955 | P24: 23.95453955 | Q24: 0 | R24: =SUM(S24:V24) -> 0 | W24: =SUM(X24:AA24) -> 0 | AB24: =SUM(AC24:AF24) -> 0 | AG24: =SUM(AH24:AK24) -> 0 | AL24: =SUM(AM24:AP24) -> 0 | AQ24: =SUM(AR24:AU24) -> 0
B25: Проверка | D25: =D8-D18-D20-D22-D23-D24-E11-F11-G11 -> 0 | E25: =E8-E18-E20-E22-E23-E24-F12-G12 -> 0 | F25: =F8-F18-F20-F22-F23-F24-G13 -> 0 | G25: =G8-G18-G20-G22-G23-G24 -> 0 | I25: =I8-I18-I20-I22-I23-I24-J11-K11-L11 -> 0 | J25: =J8-J18-J20-J22-J23-J24-K12-L12 -> 0 | K25: =K8-K18-K20-K22-K23-K24-L13 -> 0 | L25: =L8-L18-L20-L22-L23-L24 -> 0 | N25: =N8-N18-N20-N22-N23-N24-O11-P11-Q11 -> 0 | O25: =O8-O18-O20-O22-O23-O24-P12-Q12 -> 0 | P25: =P8-P18-P20-P22-P23-P24-Q13 -> 0 | Q25: =Q8-Q18-Q20-Q22-Q23-Q24 -> 0 | S25: =S8-S18-S20-S22-S23-S24-T11-U11-V11 -> 0 | T25: =T8-T18-T20-T22-T23-T24-U12-V12 -> 0 | U25: =U8-U18-U20-U22-U23-U24-V13 -> 0 | V25: =V8-V18-V20-V22-V23-V24 -> 0.002155291499 | X25: =X8-X18-X20-X22-X23-X24-Y11-Z11-AA11 -> 0 | Y25: =Y8-Y18-Y20-Y22-Y23-Y24-Z12-AA12 -> 0 | Z25: =Z8-Z18-Z20-Z22-Z23-Z24-AA13 -> 0 | AA25: =AA8-AA18-AA20-AA22-AA23-AA24 -> -0.004670654598 | AC25: =AC8-AC18-AC20-AC22-AC23-AC24-AD11-AE11-AF11 -> 0 | AD25: =AD8-AD18-AD20-AD22-AD23-AD24-AE12-AF12 -> 0 | AE25: =AE8-AE18-AE20-AE22-AE23-AE24-AF13 -> 0 | AF25: =AF8-AF18-AF20-AF22-AF23-AF24 -> 0.002261983205 | AH25: =AH8-AH18-AH20-AH22-AH23-AH24-AI11-AJ11-AK11 -> 0 | AI25: =AI8-AI18-AI20-AI22-AI23-AI24-AJ12-AK12 -> 0 | AJ25: =AJ8-AJ18-AJ20-AJ22-AJ23-AJ24-AK13 -> 0 | AK25: =AK8-AK18-AK20-AK22-AK23-AK24 -> 0 | AM25: =AM8-AM18-AM20-AM22-AM23-AM24-AN11-AO11-AP11 -> 0 | AN25: =AN8-AN18-AN20-AN22-AN23-AN24-AO12-AP12 -> 0 | AO25: =AO8-AO18-AO20-AO22-AO23-AO24-AP13 -> 0 | AP25: =AP8-AP18-AP20-AP22-AP23-AP24 -> 0 | AR25: =AR8-AR18-AR20-AR22-AR23-AR24-AS11-AT11-AU11 -> 0 | AS25: =AS8-AS18-AS20-AS22-AS23-AS24-AT12-AU12 -> 0 | AT25: =AT8-AT18-AT20-AT22-AT23-AT24-AU13 -> 0 | AU25: =AU8-AU18-AU20-AU22-AU23-AU24 -> 0
B27: Руководитель организации

Sheet Баланс мощности
B2: Электрическая мощность по диапазонам напряжения
G5: МВт
A6: № п.п. | B6: Показатели | C6: По данным организации на 2022 год | H6: По данным экспертов на 2022 год
C7: Всего | D7: ВН | E7: СН1 | F7: СН2 | G7: НН | H7: Всего | I7: ВН | J7: СН1 | K7: СН2 | L7: НН
A8: 1 | B8: 2 | C8: 3 | D8: 4 | E8: 5 | F8: 6 | G8: 7 | H8: 8 | I8: 9 | J8: 10 | K8: 11 | L8: 12
A9: 1. | B9: Поступление мощности в сеть , ВСЕГО | C9: =C19+C21+C22 -> 22 | D9: =D15+D16+D17+D18 -> 22 | E9: =E10+E15+E16+E17+E18 -> 0 | F9: =F10+F15+F16+F17+F18 -> 22 | G9: =G10+G15+G16+G17+G18 -> 20.6426 | H9: =H19+H21+H22 -> 0 | I9: =I15+I16+I17+I18 -> 0 | J9: =J10+J15+J16+J17+J18 -> 0 | K9: =K10+K15+K16+K17+K18 -> 0 | L9: =L10+L15+L16+L17+L18 -> 0
A10: 1.1. | B10: из смежной сети, всего | C10: х | D10: х | E10: =E12 -> 0 | F10: =F12+F13 -> 22 | G10: =G12+G13+G14 -> 20.6426 | H10: х | I10: х | J10: =J12 -> 0 | K10: =K12+K13 -> 0 | L10: =L12+L13+L14 -> 0
B11: в том числе из сети | C11: х | D11: х | E11: х | F11: х | G11: х | H11: х | I11: х | J11: х | K11: х | L11: х
A12: 1.1.1. | B12: ВН | C12: х | D12: х | F12: =D9-D19-D21-D22-G12-E12 -> 22 | H12: х | I12: х | K12: =I9-I19-I21-I22-L12-J12 -> 0
A13: 1.1.2. | B13: СН1 | C13: х | D13: х | E13: х | F13: =E9-E19-E21-E22-G13 -> 0 | H13: х | I13: х | J13: х | K13: =J9-J19-J21-J22-L13 -> 0
A14: 1.1.3. | B14: СН2 | C14: х | D14: х | E14: х | F14: х | G14: =F9-F19-F21-F22 -> 20.6426 | H14: х | I14: х | J14: х | K14: х | L14: =K9-K19-K21-K22 -> 0
A15: 1.2. | B15: от электростанций | C15: =SUM(D15:G15) -> 0 | H15: =SUM(I15:L15) -> 0
A16: 1.3. | B16: от ОАО "ФСК ЕЭС" | C16: =SUM(D16:G16) -> 22 | D16: 22 | H16: =SUM(I16:L16) -> 0
A17: 1.4. | B17: от филиала "Владимирэнерго" ОАО "МРСК Центра и Приволжья" | C17: =SUM(D17:G17) -> 0 | H17: =SUM(I17:L17) -> 0
A18: 1.5. | B18: от других сетевых организаций | C18: =SUM(D18:G18) -> 0 | H18: =SUM(I18:L18) -> 0
A19: 2. | B19: Потери мощности в сети | C19: =SUM(D19:G19) -> 1.3574 | D19: =D9*D20/100 -> 0 | E19: =E9*E20/100 -> 0 | F19: =F9*F20/100 -> 1.3574 | G19: =G9*G20/100 -> 0 | H19: =SUM(I19:L19) -> 0 | I19: =I9*I20/100 -> 0 | J19: =J9*J20/100 -> 0 | K19: =K9*K20/100 -> 0 | L19: =L9*L20/100 -> 0
A20: 2.1. | B20: то же в % (п.2./п.1.) | C20: =IF(C9=0,0,C19/C9*100) -> 6.17 | D20: ='Баланс энергии'!S19 -> 0 | E20: ='Баланс энергии'!T19 -> 0 | F20: ='Баланс энергии'!U19 -> 6.17 | H20: =IF(H9=0,0,H19/H9*100) -> 0 | I20: ='Баланс энергии'!AH19 -> 0 | J20: ='Баланс энергии'!AI19 -> 0 | K20: ='Баланс энергии'!AJ19 -> 0
A21: 3. | B21: Расход электроэнергии на производственные и хознужды | C21: =SUM(D21:G21) -> 0 | H21: =SUM(I21:L21) -> 0
A22: 4. | B22: Полезный отпуск из сети | C22: =SUM(D22:G22) -> 20.6426 | D22: =D23+D24+D25 -> 0 | E22: =E23+E24+E25 -> 0 | F22: =F23+F24+F25 -> 0 | G22: =G9-G19-G21 -> 20.6426 | H22: =SUM(I22:L22) -> 0 | I22: =I23+I24+I25 -> 0 | J22: =J23+J24+J25 -> 0 | K22: =K23+K24+K25 -> 0 | L22: =L9-L19-L21 -> 0
A23: 4.1. | B23: потребителям, присоединенным к сети | C23: =SUM(D23:G23) -> 0 | H23: =SUM(I23:L23) -> 0
A24: 4.2. | B24: переток в филиал "Владимирэнерго" ОАО "МРСК Центра и Приволжья" | C24: =SUM(D24:G24) -> 20.6426 | G24: 20.6426 | H24: =SUM(I24:L24) -> 0
A25: 4.3. | B25: переток в другие сетевые организации | C25: =SUM(D25:G25) -> 0 | H25: =SUM(I25:L25) -> 0
B26: Проверка | D26: =D9-D19-D21-D23-D24-D25-E12-F12-G12 -> 0 | E26: =E9-E19-E21-E23-E24-E25-F13-G13 -> 0 | F26: =F9-F19-F21-F23-F24-F25-G14 -> 0 | G26: =G9-G19-G21-G23-G24-G25 -> 0 | I26: =I9-I19-I21-I23-I24-I25-J12-K12-L12 -> 0 | J26: =J9-J19-J21-J23-J24-J25-K13-L13 -> 0 | K26: =K9-K19-K21-K23-K24-K25-L14 -> 0 | L26: =L9-L19-L21-L23-L24-L25 -> 0
B28: Руководитель организации

Sheet Заявитель1 (hidden)
C1: Приложение 2 к Методическим указаниям, утвержденным приказом ФСТ от 11.09.2014 г. №215-э/1
A3: Расчет размера расходов, связанных с предоставлением беспроцентной рассрочки (для конкретного заявителя)
B5: (Контрагент (наименование), № договора ТП, Дата заключения договора)
A7: N п/п | B7: Квартал, на который рассчитывается размер расходов, связанных с предоставлением беспроцентной рассрочки | C7: Расходы, связанные с предоставлением беспроцентной рассрочки, тыс. руб. (с учетом НДС) | H7: Номер квартала i
C8: в отношении суммарного размера платы за технологическое присоединение в 1 квартале | D8: в отношении суммарного размера платы за технологическое присоединение во 2 квартале | E8: в отношении суммарного размера платы за технологическое присоединение в 3 квартале | F8: в отношении суммарного размера платы за технологическое присоединение в 4 квартале | G8: всего в год
A9: 1 | B9: =CONCATENATE("1 год (",$B$34,"г.):") -> 1 год (г.): | C9: =SUM(C10:C13) -> 0 | D9: =SUM(D10:D13) -> 0 | E9: =SUM(E10:E13) -> 0 | F9: =SUM(F10:F13) -> 0 | G9: =SUM(C9:F9) -> 0
A10: 1.1. | B10: 1 квартал | C10: =IF($H10>=$B$32,Заявитель1!$B$33*0.95*((12+$B$32-$H10)/12)*($B$31/4),0) -> 0 | G10: 0 | H10: 1
A11: 1.2. | B11: 2 квартал | D11: =IF($H11>=$B$32,Заявитель1!$B$33*0.95*((12+$B$32-$H11)/12)*($B$31/4),0) -> 0 | G11: 0 | H11: 2
A12: 1.3. | B12: 3 квартал | E12: =IF($H12>=$B$32,Заявитель1!$B$33*0.95*((12+$B$32-$H12)/12)*($B$31/4),0) -> 0 | G12: 0 | H12: 3
A13: 1.4. | B13: 4 квартал | F13: =IF($H13>=$B$32,Заявитель1!$B$33*0.95*((12+$B$32-$H13)/12)*($B$31/4),0) -> 0 | G13: 0 | H13: 4
A14: 2 | B14: =CONCATENATE("1 год (",$B$34+1,"г.):") -> 1 год (1г.): | C14: =SUM(C15:C18) -> 0 | D14: =SUM(D15:D18) -> 0 | E14: =SUM(E15:E18) -> 0 | F14: =SUM(F15:F18) -> 0 | G14: 0
A15: 2.1. | B15: 5 квартал | C15: =Заявитель1!$B$33*0.95*((12+$B$32-$H15)/12)*($B$31/4) -> 0 | G15: 0 | H15: 5
A16: 2.2. | B16: 6 квартал | D16: =Заявитель1!$B$33*0.95*((12+$B$32-$H16)/12)*($B$31/4) -> 0 | G16: 0 | H16: 6
A17: 2.3. | B17: 7 квартал | E17: =Заявитель1!$B$33*0.95*((12+$B$32-$H17)/12)*($B$31/4) -> 0 | G17: 0 | H17: 7
A18: 2.4. | B18: 8 квартал | F18: =Заявитель1!$B$33*0.95*((12+$B$32-$H18)/12)*($B$31/4) -> 0 | G18: 0 | H18: 8
A19: 3 | B19: =CONCATENATE("1 год (",$B$34+2,"г.):") -> 1 год (2г.): | C19: =SUM(C20:C23) -> 0 | D19: =SUM(D20:D23) -> 0 | E19: =SUM(E20:E23) -> 0 | F19: =SUM(F20:F23) -> 0 | G19: 0
A20: 3.1. | B20: 9 квартал | C20: =Заявитель1!$B$33*0.95*((12+$B$32-$H20)/12)*($B$31/4) -> 0 | G20: 0 | H20: 9
A21: 3.2. | B21: 10 квартал | D21: =Заявитель1!$B$33*0.95*((12+$B$32-$H21)/12)*($B$31/4) -> 0 | G21: 0 | H21: 10
A22: 3.3. | B22: 11 квартал | E22: =Заявитель1!$B$33*0.95*((12+$B$32-$H22)/12)*($B$31/4) -> 0 | G22: 0 | H22: 11
A23: 3.4. | B23: 12 квартал | F23: =Заявитель1!$B$33*0.95*((12+$B$32-$H23)/12)*($B$31/4) -> 0 | G23: 0 | H23: 12
A24: 4 | B24: =CONCATENATE("1 год (",$B$34+3,"г.):") -> 1 год (3г.): | C24: =SUM(C25:C27) -> 0 | D24: =SUM(D25:D27) -> 0 | E24: =SUM(E25:E27) -> 0 | F24: =SUM(F25:F27) -> 0 | G24: 0
A25: 4.1. | B25: 13 квартал | C25: =Заявитель1!$B$33*0.95*((12+$B$32-$H25)/12)*($B$31/4) -> 0 | G25: 0 | H25: 13
A26: 4.2. | B26: 14 квартал | D26: =IF((Заявитель1!$B$33*0.95*((12+$B$32-$H26)/12)*($B$31/4))<0,0,Заявитель1!$B$33*0.95*((12+$B$32-$H26)/12)*($B$31/4)) -> 0 | G26: 0 | H26: 14
A27: 4.3. | B27: 15 квартал | E27: =IF((Заявитель1!$B$33*0.95*((12+$B$32-$H27)/12)*($B$31/4))<0,0,Заявитель1!$B$33*0.95*((12+$B$32-$H27)/12)*($B$31/4)) -> 0 | G27: 0 | H27: 15
A28: 5 | B28: Итого | C28: =C9+C14+C19+C24 -> 0 | D28: =D9+D14+D19+D24 -> 0 | E28: =E9+E14+E19+E24 -> 0 | F28: =F9+F14+F19+F24 -> 0 | G28: =G9+G14+G19+G24 -> 0
A32: k
A34: Год закрытия договора
A36: Размера расходов, связанных с предоставлением беспроцентной рассрочки в 2022 году | G36: =IF(B34<2019,0,IF(B34=2019,G24,IF(B34=2020,G19,IF(B34=2021,G14)))) -> 0 | H36: тыс. руб.
A38: Размер расходов, связанных с предоставлением беспроцентной рассрочки, в i-м квартале в течение трехлетнего периода предоставления беспроцентной рассрочки рассчитывается по формуле (1):
D40: , (1)
A42: где:
A43: - суммарный размер платы за технологическое присоединение, начисляемый заявителям, которым предоставляется рассрочка, в квартале k периода регулирования (тыс. руб.);
A44: k - номер квартала по порядку в периоде регулирования, в который начисляется размер платы за технологическое присоединение (равен от 1 до 4);
A45: i - номер квартала по порядку, начиная с момента начисления размера платы за технологическое присоединение с условием предоставления беспроцентной рассрочки в квартале k, с учетом квартала, в котором произведены начисления, в течение трехлетнего периода предоставления беспроцентной рассрочки (равен от k до 12 + k - 1);
A46: - ставка рефинансирования Центрального банка Российской Федерации на дату представления сетевой организацией заявки на установление размера платы за технологическое присоединение в регулирующий орган.
A47: В случае отклонения фактического значения процентной ставки по кредитам, связанным с рассрочкой по оплате технологического присоединения, от ставки рефинансирования Центрального банка Российской Федерации, при расчете фактического размера расходов, связанных с предоставлением беспроцентной рассрочки, применяется величина процентной ставки в соответствии с пунктом 87 Основ ценообразования.
A49: Примечание:
A50: 1) Периодом предоставления беспроцентной рассрочки считается 3 года.
A51: 2) Размер расходов, связанных с предоставлением беспроцентной рассрочки, в каждый квартал периода регулирования в течение трехлетнего периода предоставления беспроцентной рассрочки в отношении планируемого к получению (фактически полученного) от заявителей суммарного размера платы за технологическое присоединение, определяется в соответствии с формулой (1) Методических указаний по определению выпадающих доходов, связанных с осуществлением технологического присоединения к электрическим сетям.
A52: 3) При расчете планируемых значений показателей при заполнении таблиц 1 и 2 применяется планируемая к получению величина суммарного размера платы за технологическое присоединение, подлежащего беспроцентной рассрочке.
A53: 4) При расчете фактических значений показателей при заполнении таблиц 1 и 2 применяется суммарная плата за технологическое присоединение, начисленная с беспроцентной рассрочкой в соответствии с заключенными договорами об осуществлении технологического присоединения к электрическим сетям.

Sheet Заявитель2 (hidden)
C1: Приложение 2 к Методическим указаниям, утвержденным приказом ФСТ от 11.09.2014 г. №215-э/1
A3: Расчет размера расходов, связанных с предоставлением беспроцентной рассрочки (для конкретного заявителя)
B5: (Контрагент (наименование), № договора ТП, Дата заключения договора)
A7: N п/п | B7: Квартал, на который рассчитывается размер расходов, связанных с предоставлением беспроцентной рассрочки | C7: Расходы, связанные с предоставлением беспроцентной рассрочки, тыс. руб. (с учетом НДС) | H7: Номер квартала i
C8: в отношении суммарного размера платы за технологическое присоединение в 1 квартале | D8: в отношении суммарного размера платы за технологическое присоединение во 2 квартале | E8: в отношении суммарного размера платы за технологическое присоединение в 3 квартале | F8: в отношении суммарного размера платы за технологическое присоединение в 4 квартале | G8: всего в год
A9: 1 | B9: =CONCATENATE("1 год (",$B$34,"г.):") -> 1 год (г.): | C9: =SUM(C10:C13) -> 0 | D9: =SUM(D10:D13) -> 0 | E9: =SUM(E10:E13) -> 0 | F9: =SUM(F10:F13) -> 0 | G9: =SUM(C9:F9) -> 0
A10: 1.1. | B10: 1 квартал | C10: =IF($H10>=$B$32,Заявитель2!$B$33*0.95*((12+$B$32-$H10)/12)*($B$31/4),0) -> 0 | G10: 0 | H10: 1
A11: 1.2. | B11: 2 квартал | D11: =IF($H11>=$B$32,Заявитель2!$B$33*0.95*((12+$B$32-$H11)/12)*($B$31/4),0) -> 0 | G11: 0 | H11: 2
A12: 1.3. | B12: 3 квартал | E12: =IF($H12>=$B$32,Заявитель2!$B$33*0.95*((12+$B$32-$H12)/12)*($B$31/4),0) -> 0 | G12: 0 | H12: 3
A13: 1.4. | B13: 4 квартал | F13: =IF($H13>=$B$32,Заявитель2!$B$33*0.95*((12+$B$32-$H13)/12)*($B$31/4),0) -> 0 | G13: 0 | H13: 4
A14: 2 | B14: =CONCATENATE("1 год (",$B$34+1,"г.):") -> 1 год (1г.): | C14: =SUM(C15:C18) -> 0 | D14: =SUM(D15:D18) -> 0 | E14: =SUM(E15:E18) -> 0 | F14: =SUM(F15:F18) -> 0 | G14: 0
A15: 2.1. | B15: 5 квартал | C15: =Заявитель2!$B$33*0.95*((12+$B$32-$H15)/12)*($B$31/4) -> 0 | G15: 0 | H15: 5
A16: 2.2. | B16: 6 квартал | D16: =Заявитель2!$B$33*0.95*((12+$B$32-$H16)/12)*($B$31/4) -> 0 | G16: 0 | H16: 6
A17: 2.3. | B17: 7 квартал | E17: =Заявитель2!$B$33*0.95*((12+$B$32-$H17)/12)*($B$31/4) -> 0 | G17: 0 | H17: 7
A18: 2.4. | B18: 8 квартал | F18: =Заявитель2!$B$33*0.95*((12+$B$32-$H18)/12)*($B$31/4) -> 0 | G18: 0 | H18: 8
A19: 3 | B19: =CONCATENATE("1 год (",$B$34+2,"г.):") -> 1 год (2г.): | C19: =SUM(C20:C23) -> 0 | D19: =SUM(D20:D23) -> 0 | E19: =SUM(E20:E23) -> 0 | F19: =SUM(F20:F23) -> 0 | G19: 0
A20: 3.1. | B20: 9 квартал | C20: =Заявитель2!$B$33*0.95*((12+$B$32-$H20)/12)*($B$31/4) -> 0 | G20: 0 | H20: 9
A21: 3.2. | B21: 10 квартал | D21: =Заявитель2!$B$33*0.95*((12+$B$32-$H21)/12)*($B$31/4) -> 0 | G21: 0 | H21: 10
A22: 3.3. | B22: 11 квартал | E22: =Заявитель2!$B$33*0.95*((12+$B$32-$H22)/12)*($B$31/4) -> 0 | G22: 0 | H22: 11
A23: 3.4. | B23: 12 квартал | F23: =Заявитель2!$B$33*0.95*((12+$B$32-$H23)/12)*($B$31/4) -> 0 | G23: 0 | H23: 12
A24: 4 | B24: =CONCATENATE("1 год (",$B$34+3,"г.):") -> 1 год (3г.): | C24: =SUM(C25:C27) -> 0 | D24: =SUM(D25:D27) -> 0 | E24: =SUM(E25:E27) -> 0 | F24: =SUM(F25:F27) -> 0 | G24: 0
A25: 4.1. | B25: 13 квартал | C25: =Заявитель2!$B$33*0.95*((12+$B$32-$H25)/12)*($B$31/4) -> 0 | G25: 0 | H25: 13
A26: 4.2. | B26: 14 квартал | D26: =IF((Заявитель2!$B$33*0.95*((12+$B$32-$H26)/12)*($B$31/4))<0,0,Заявитель2!$B$33*0.95*((12+$B$32-$H26)/12)*($B$31/4)) -> 0 | G26: 0 | H26: 14
A27: 4.3. | B27: 15 квартал | E27: =IF((Заявитель2!$B$33*0.95*((12+$B$32-$H27)/12)*($B$31/4))<0,0,Заявитель2!$B$33*0.95*((12+$B$32-$H27)/12)*($B$31/4)) -> 0 | G27: 0 | H27: 15
A28: 5 | B28: Итого | C28: =C9+C14+C19+C24 -> 0 | D28: =D9+D14+D19+D24 -> 0 | E28: =E9+E14+E19+E24 -> 0 | F28: =F9+F14+F19+F24 -> 0 | G28: =G9+G14+G19+G24 -> 0
A32: k
A34: Год закрытия договора
A36: Размера расходов, связанных с предоставлением беспроцентной рассрочки в 2022 году | G36: =IF(B34<2019,0,IF(B34=2019,G24,IF(B34=2020,G19,IF(B34=2021,G14)))) -> 0 | H36: тыс. руб.
A38: Размер расходов, связанных с предоставлением беспроцентной рассрочки, в i-м квартале в течение трехлетнего периода предоставления беспроцентной рассрочки рассчитывается по формуле (1):
D40: , (1)
A42: где:
A43: - суммарный размер платы за технологическое присоединение, начисляемый заявителям, которым предоставляется рассрочка, в квартале k периода регулирования (тыс. руб.);
A44: k - номер квартала по порядку в периоде регулирования, в который начисляется размер платы за технологическое присоединение (равен от 1 до 4);
A45: i - номер квартала по порядку, начиная с момента начисления размера платы за технологическое присоединение с условием предоставления беспроцентной рассрочки в квартале k, с учетом квартала, в котором произведены начисления, в течение трехлетнего периода предоставления беспроцентной рассрочки (равен от k до 12 + k - 1);
A46: - ставка рефинансирования Центрального банка Российской Федерации на дату представления сетевой организацией заявки на установление размера платы за технологическое присоединение в регулирующий орган.
A47: В случае отклонения фактического значения процентной ставки по кредитам, связанным с рассрочкой по оплате технологического присоединения, от ставки рефинансирования Центрального банка Российской Федерации, при расчете фактического размера расходов, связанных с предоставлением беспроцентной рассрочки, применяется величина процентной ставки в соответствии с пунктом 87 Основ ценообразования.
A49: Примечание:
A50: 1) Периодом предоставления беспроцентной рассрочки считается 3 года.
A51: 2) Размер расходов, связанных с предоставлением беспроцентной рассрочки, в каждый квартал периода регулирования в течение трехлетнего периода предоставления беспроцентной рассрочки в отношении планируемого к получению (фактически полученного) от заявителей суммарного размера платы за технологическое присоединение, определяется в соответствии с формулой (1) Методических указаний по определению выпадающих доходов, связанных с осуществлением технологического присоединения к электрическим сетям.
A52: 3) При расчете планируемых значений показателей при заполнении таблиц 1 и 2 применяется планируемая к получению величина суммарного размера платы за технологическое присоединение, подлежащего беспроцентной рассрочке.
A53: 4) При расчете фактических значений показателей при заполнении таблиц 1 и 2 применяется суммарная плата за технологическое присоединение, начисленная с беспроцентной рассрочкой в соответствии с заключенными договорами об осуществлении технологического присоединения к электрическим сетям.

Sheet Заявитель3 (hidden)
C1: Приложение 2 к Методическим указаниям, утвержденным приказом ФСТ от 11.09.2014 г. №215-э/1
A3: Расчет размера расходов, связанных с предоставлением беспроцентной рассрочки (для конкретного заявителя)
B5: (Контрагент (наименование), № договора ТП, Дата заключения договора)
A7: N п/п | B7: Квартал, на который рассчитывается размер расходов, связанных с предоставлением беспроцентной рассрочки | C7: Расходы, связанные с предоставлением беспроцентной рассрочки, тыс. руб. (с учетом НДС) | H7: Номер квартала i
C8: в отношении суммарного размера платы за технологическое присоединение в 1 квартале | D8: в отношении суммарного размера платы за технологическое присоединение во 2 квартале | E8: в отношении суммарного размера платы за технологическое присоединение в 3 квартале | F8: в отношении суммарного размера платы за технологическое присоединение в 4 квартале | G8: всего в год
A9: 1 | B9: =CONCATENATE("1 год (",$B$34,"г.):") -> 1 год (г.): | C9: =SUM(C10:C13) -> 0 | D9: =SUM(D10:D13) -> 0 | E9: =SUM(E10:E13) -> 0 | F9: =SUM(F10:F13) -> 0 | G9: =SUM(C9:F9) -> 0
A10: 1.1. | B10: 1 квартал | C10: =IF($H10>=$B$32,Заявитель3!$B$33*0.95*((12+$B$32-$H10)/12)*($B$31/4),0) -> 0 | G10: 0 | H10: 1
A11: 1.2. | B11: 2 квартал | D11: =IF($H11>=$B$32,Заявитель3!$B$33*0.95*((12+$B$32-$H11)/12)*($B$31/4),0) -> 0 | G11: 0 | H11: 2
A12: 1.3. | B12: 3 квартал | E12: =IF($H12>=$B$32,Заявитель3!$B$33*0.95*((12+$B$32-$H12)/12)*($B$31/4),0) -> 0 | G12: 0 | H12: 3
A13: 1.4. | B13: 4 квартал | F13: =IF($H13>=$B$32,Заявитель3!$B$33*0.95*((12+$B$32-$H13)/12)*($B$31/4),0) -> 0 | G13: 0 | H13: 4
A14: 2 | B14: =CONCATENATE("1 год (",$B$34+1,"г.):") -> 1 год (1г.): | C14: =SUM(C15:C18) -> 0 | D14: =SUM(D15:D18) -> 0 | E14: =SUM(E15:E18) -> 0 | F14: =SUM(F15:F18) -> 0 | G14: 0
A15: 2.1. | B15: 5 квартал | C15: =Заявитель3!$B$33*0.95*((12+$B$32-$H15)/12)*($B$31/4) -> 0 | G15: 0 | H15: 5
A16: 2.2. | B16: 6 квартал | D16: =Заявитель3!$B$33*0.95*((12+$B$32-$H16)/12)*($B$31/4) -> 0 | G16: 0 | H16: 6
A17: 2.3. | B17: 7 квартал | E17: =Заявитель3!$B$33*0.95*((12+$B$32-$H17)/12)*($B$31/4) -> 0 | G17: 0 | H17: 7
A18: 2.4. | B18: 8 квартал | F18: =Заявитель3!$B$33*0.95*((12+$B$32-$H18)/12)*($B$31/4) -> 0 | G18: 0 | H18: 8
A19: 3 | B19: =CONCATENATE("1 год (",$B$34+2,"г.):") -> 1 год (2г.): | C19: =SUM(C20:C23) -> 0 | D19: =SUM(D20:D23) -> 0 | E19: =SUM(E20:E23) -> 0 | F19: =SUM(F20:F23) -> 0 | G19: 0
A20: 3.1. | B20: 9 квартал | C20: =Заявитель3!$B$33*0.95*((12+$B$32-$H20)/12)*($B$31/4) -> 0 | G20: 0 | H20: 9
A21: 3.2. | B21: 10 квартал | D21: =Заявитель3!$B$33*0.95*((12+$B$32-$H21)/12)*($B$31/4) -> 0 | G21: 0 | H21: 10
A22: 3.3. | B22: 11 квартал | E22: =Заявитель3!$B$33*0.95*((12+$B$32-$H22)/12)*($B$31/4) -> 0 | G22: 0 | H22: 11
A23: 3.4. | B23: 12 квартал | F23: =Заявитель3!$B$33*0.95*((12+$B$32-$H23)/12)*($B$31/4) -> 0 | G23: 0 | H23: 12
A24: 4 | B24: =CONCATENATE("1 год (",$B$34+3,"г.):") -> 1 год (3г.): | C24: =SUM(C25:C27) -> 0 | D24: =SUM(D25:D27) -> 0 | E24: =SUM(E25:E27) -> 0 | F24: =SUM(F25:F27) -> 0 | G24: 0
A25: 4.1. | B25: 13 квартал | C25: =Заявитель3!$B$33*0.95*((12+$B$32-$H25)/12)*($B$31/4) -> 0 | G25: 0 | H25: 13
A26: 4.2. | B26: 14 квартал | D26: =IF((Заявитель3!$B$33*0.95*((12+$B$32-$H26)/12)*($B$31/4))<0,0,Заявитель3!$B$33*0.95*((12+$B$32-$H26)/12)*($B$31/4)) -> 0 | G26: 0 | H26: 14
A27: 4.3. | B27: 15 квартал | E27: =IF((Заявитель3!$B$33*0.95*((12+$B$32-$H27)/12)*($B$31/4))<0,0,Заявитель3!$B$33*0.95*((12+$B$32-$H27)/12)*($B$31/4)) -> 0 | G27: 0 | H27: 15
A28: 5 | B28: Итого | C28: =C9+C14+C19+C24 -> 0 | D28: =D9+D14+D19+D24 -> 0 | E28: =E9+E14+E19+E24 -> 0 | F28: =F9+F14+F19+F24 -> 0 | G28: =G9+G14+G19+G24 -> 0
A32: k
A34: Год закрытия договора
A36: Размера расходов, связанных с предоставлением беспроцентной рассрочки в 2022 году | G36: =IF(B34<2019,0,IF(B34=2019,G24,IF(B34=2020,G19,IF(B34=2021,G14)))) -> 0 | H36: тыс. руб.
A38: Размер расходов, связанных с предоставлением беспроцентной рассрочки, в i-м квартале в течение трехлетнего периода предоставления беспроцентной рассрочки рассчитывается по формуле (1):
D40: , (1)
A42: где:
A43: - суммарный размер платы за технологическое присоединение, начисляемый заявителям, которым предоставляется рассрочка, в квартале k периода регулирования (тыс. руб.);
A44: k - номер квартала по порядку в периоде регулирования, в который начисляется размер платы за технологическое присоединение (равен от 1 до 4);
A45: i - номер квартала по порядку, начиная с момента начисления размера платы за технологическое присоединение с условием предоставления беспроцентной рассрочки в квартале k, с учетом квартала, в котором произведены начисления, в течение трехлетнего периода предоставления беспроцентной рассрочки (равен от k до 12 + k - 1);
A46: - ставка рефинансирования Центрального банка Российской Федерации на дату представления сетевой организацией заявки на установление размера платы за технологическое присоединение в регулирующий орган.
A47: В случае отклонения фактического значения процентной ставки по кредитам, связанным с рассрочкой по оплате технологического присоединения, от ставки рефинансирования Центрального банка Российской Федерации, при расчете фактического размера расходов, связанных с предоставлением беспроцентной рассрочки, применяется величина процентной ставки в соответствии с пунктом 87 Основ ценообразования.
A49: Примечание:
A50: 1) Периодом предоставления беспроцентной рассрочки считается 3 года.
A51: 2) Размер расходов, связанных с предоставлением беспроцентной рассрочки, в каждый квартал периода регулирования в течение трехлетнего периода предоставления беспроцентной рассрочки в отношении планируемого к получению (фактически полученного) от заявителей суммарного размера платы за технологическое присоединение, определяется в соответствии с формулой (1) Методических указаний по определению выпадающих доходов, связанных с осуществлением технологического присоединения к электрическим сетям.
A52: 3) При расчете планируемых значений показателей при заполнении таблиц 1 и 2 применяется планируемая к получению величина суммарного размера платы за технологическое присоединение, подлежащего беспроцентной рассрочке.
A53: 4) При расчете фактических значений показателей при заполнении таблиц 1 и 2 применяется суммарная плата за технологическое присоединение, начисленная с беспроцентной рассрочкой в соответствии с заключенными договорами об осуществлении технологического присоединения к электрическим сетям.

Sheet Заявитель4 (hidden)
C1: Приложение 2 к Методическим указаниям, утвержденным приказом ФСТ от 11.09.2014 г. №215-э/1
A3: Расчет размера расходов, связанных с предоставлением беспроцентной рассрочки (для конкретного заявителя)
B5: (Контрагент (наименование), № договора ТП, Дата заключения договора)
A7: N п/п | B7: Квартал, на который рассчитывается размер расходов, связанных с предоставлением беспроцентной рассрочки | C7: Расходы, связанные с предоставлением беспроцентной рассрочки, тыс. руб. (с учетом НДС) | H7: Номер квартала i
C8: в отношении суммарного размера платы за технологическое присоединение в 1 квартале | D8: в отношении суммарного размера платы за технологическое присоединение во 2 квартале | E8: в отношении суммарного размера платы за технологическое присоединение в 3 квартале | F8: в отношении суммарного размера платы за технологическое присоединение в 4 квартале | G8: всего в год
A9: 1 | B9: =CONCATENATE("1 год (",$B$34,"г.):") -> 1 год (г.): | C9: =SUM(C10:C13) -> 0 | D9: =SUM(D10:D13) -> 0 | E9: =SUM(E10:E13) -> 0 | F9: =SUM(F10:F13) -> 0 | G9: =SUM(C9:F9) -> 0
A10: 1.1. | B10: 1 квартал | C10: =IF($H10>=$B$32,Заявитель4!$B$33*0.95*((12+$B$32-$H10)/12)*($B$31/4),0) -> 0 | G10: 0 | H10: 1
A11: 1.2. | B11: 2 квартал | D11: =IF($H11>=$B$32,Заявитель4!$B$33*0.95*((12+$B$32-$H11)/12)*($B$31/4),0) -> 0 | G11: 0 | H11: 2
A12: 1.3. | B12: 3 квартал | E12: =IF($H12>=$B$32,Заявитель4!$B$33*0.95*((12+$B$32-$H12)/12)*($B$31/4),0) -> 0 | G12: 0 | H12: 3
A13: 1.4. | B13: 4 квартал | F13: =IF($H13>=$B$32,Заявитель4!$B$33*0.95*((12+$B$32-$H13)/12)*($B$31/4),0) -> 0 | G13: 0 | H13: 4
A14: 2 | B14: =CONCATENATE("1 год (",$B$34+1,"г.):") -> 1 год (1г.): | C14: =SUM(C15:C18) -> 0 | D14: =SUM(D15:D18) -> 0 | E14: =SUM(E15:E18) -> 0 | F14: =SUM(F15:F18) -> 0 | G14: 0
A15: 2.1. | B15: 5 квартал | C15: =Заявитель4!$B$33*0.95*((12+$B$32-$H15)/12)*($B$31/4) -> 0 | G15: 0 | H15: 5
A16: 2.2. | B16: 6 квартал | D16: =Заявитель4!$B$33*0.95*((12+$B$32-$H16)/12)*($B$31/4) -> 0 | G16: 0 | H16: 6
A17: 2.3. | B17: 7 квартал | E17: =Заявитель4!$B$33*0.95*((12+$B$32-$H17)/12)*($B$31/4) -> 0 | G17: 0 | H17: 7
A18: 2.4. | B18: 8 квартал | F18: =Заявитель4!$B$33*0.95*((12+$B$32-$H18)/12)*($B$31/4) -> 0 | G18: 0 | H18: 8
A19: 3 | B19: =CONCATENATE("1 год (",$B$34+2,"г.):") -> 1 год (2г.): | C19: =SUM(C20:C23) -> 0 | D19: =SUM(D20:D23) -> 0 | E19: =SUM(E20:E23) -> 0 | F19: =SUM(F20:F23) -> 0 | G19: 0
A20: 3.1. | B20: 9 квартал | C20: =Заявитель4!$B$33*0.95*((12+$B$32-$H20)/12)*($B$31/4) -> 0 | G20: 0 | H20: 9
A21: 3.2. | B21: 10 квартал | D21: =Заявитель4!$B$33*0.95*((12+$B$32-$H21)/12)*($B$31/4) -> 0 | G21: 0 | H21: 10
A22: 3.3. | B22: 11 квартал | E22: =Заявитель4!$B$33*0.95*((12+$B$32-$H22)/12)*($B$31/4) -> 0 | G22: 0 | H22: 11
A23: 3.4. | B23: 12 квартал | F23: =Заявитель4!$B$33*0.95*((12+$B$32-$H23)/12)*($B$31/4) -> 0 | G23: 0 | H23: 12
A24: 4 | B24: =CONCATENATE("1 год (",$B$34+3,"г.):") -> 1 год (3г.): | C24: =SUM(C25:C27) -> 0 | D24: =SUM(D25:D27) -> 0 | E24: =SUM(E25:E27) -> 0 | F24: =SUM(F25:F27) -> 0 | G24: 0
A25: 4.1. | B25: 13 квартал | C25: =Заявитель4!$B$33*0.95*((12+$B$32-$H25)/12)*($B$31/4) -> 0 | G25: 0 | H25: 13
A26: 4.2. | B26: 14 квартал | D26: =IF((Заявитель4!$B$33*0.95*((12+$B$32-$H26)/12)*($B$31/4))<0,0,Заявитель4!$B$33*0.95*((12+$B$32-$H26)/12)*($B$31/4)) -> 0 | G26: 0 | H26: 14
A27: 4.3. | B27: 15 квартал | E27: =IF((Заявитель4!$B$33*0.95*((12+$B$32-$H27)/12)*($B$31/4))<0,0,Заявитель4!$B$33*0.95*((12+$B$32-$H27)/12)*($B$31/4)) -> 0 | G27: 0 | H27: 15
A28: 5 | B28: Итого | C28: =C9+C14+C19+C24 -> 0 | D28: =D9+D14+D19+D24 -> 0 | E28: =E9+E14+E19+E24 -> 0 | F28: =F9+F14+F19+F24 -> 0 | G28: =G9+G14+G19+G24 -> 0
A32: k
A34: Год закрытия договора
A36: Размера расходов, связанных с предоставлением беспроцентной рассрочки в 2022 году | G36: =IF(B34<2019,0,IF(B34=2019,G24,IF(B34=2020,G19,IF(B34=2021,G14)))) -> 0 | H36: тыс. руб.
A38: Размер расходов, связанных с предоставлением беспроцентной рассрочки, в i-м квартале в течение трехлетнего периода предоставления беспроцентной рассрочки рассчитывается по формуле (1):
D40: , (1)
A42: где:
A43: - суммарный размер платы за технологическое присоединение, начисляемый заявителям, которым предоставляется рассрочка, в квартале k периода регулирования (тыс. руб.);
A44: k - номер квартала по порядку в периоде регулирования, в который начисляется размер платы за технологическое присоединение (равен от 1 до 4);
A45: i - номер квартала по порядку, начиная с момента начисления размера платы за технологическое присоединение с условием предоставления беспроцентной рассрочки в квартале k, с учетом квартала, в котором произведены начисления, в течение трехлетнего периода предоставления беспроцентной рассрочки (равен от k до 12 + k - 1);
A46: - ставка рефинансирования Центрального банка Российской Федерации на дату представления сетевой организацией заявки на установление размера платы за технологическое присоединение в регулирующий орган.
A47: В случае отклонения фактического значения процентной ставки по кредитам, связанным с рассрочкой по оплате технологического присоединения, от ставки рефинансирования Центрального банка Российской Федерации, при расчете фактического размера расходов, связанных с предоставлением беспроцентной рассрочки, применяется величина процентной ставки в соответствии с пунктом 87 Основ ценообразования.
A49: Примечание:
A50: 1) Периодом предоставления беспроцентной рассрочки считается 3 года.
A51: 2) Размер расходов, связанных с предоставлением беспроцентной рассрочки, в каждый квартал периода регулирования в течение трехлетнего периода предоставления беспроцентной рассрочки в отношении планируемого к получению (фактически полученного) от заявителей суммарного размера платы за технологическое присоединение, определяется в соответствии с формулой (1) Методических указаний по определению выпадающих доходов, связанных с осуществлением технологического присоединения к электрическим сетям.
A52: 3) При расчете планируемых значений показателей при заполнении таблиц 1 и 2 применяется планируемая к получению величина суммарного размера платы за технологическое присоединение, подлежащего беспроцентной рассрочке.
A53: 4) При расчете фактических значений показателей при заполнении таблиц 1 и 2 применяется суммарная плата за технологическое присоединение, начисленная с беспроцентной рассрочкой в соответствии с заключенными договорами об осуществлении технологического присоединения к электрическим сетям.

Sheet НВВ по данным экспертов (hidden)
A2: Расчет необходимой валовой выручки (НВВ) на оказание услуги по передаче электрической энергии на 2022 год долгосрочного периода регулирования 2020- 2024 годы по данным экспертов
A3: =#REF! -> 
A5: № п.п. | B5: Наименование | C5: Ед.изм. | D5: 2020 год | F5: 2021 год утверждено | G5: 2022 год
D6: Утверждено | E6: Факт
A7: 1 | B7: 2 | C7: 3 | D7: 4 | E7: 5 | F7: 6 | G7: 7
A8: Долгосрочные параметры регулирования
A9: 1 | B9: Базовый уровень подконтрольных расходов (ПР) | C9: тыс.руб. | D9: х | E9: х | F9: =#REF! ->  | G9: х
A10: 2 | B10: Индекс эффективности подконтрольных расходов (Хэф) | C10: % | D10: =#REF! ->  | E10: =#REF! ->  | F10: =#REF! ->  | G10: =#REF! -> 
A11: 3 | B11: Коэффициент эластичности подконтрольных расходов по количеству активов (К эл) | C11: знач. | D11: 0.75 | E11: 0.75 | F11: 0.75 | G11: 0.75
A12: 4 | B12: Уровень надежности и качества оказываемых услуг | C12: х | D12: х | E12: х | F12: х | G12: х
A13: 4.1. | B13: Показатель средней продолжительности прекращений передачи электрической энергии на точку поставки , час. | C13: знач. | D13: =#REF! ->  | E13: =#REF! ->  | F13: 1.4461 | G13: 1.4244 | I13: 2021 | J13: 1.4461 | K13: 0.7853 | L13: 1
A14: 4.2. | B14: Показатель средней частоты прекращений передачи электрической энергии на точку поставки , шт. | C14: знач. | D14: =#REF! ->  | E14: =#REF! ->  | F14: 0.7853 | G14: 0.6929 | J14: 1.4244 | K14: 0.6929 | L14: 1
A15: 4.3. | B15: Показатель уровня качества осуществляемого технологического присоединения | C15: знач. | D15: =#REF! ->  | E15: =#REF! ->  | F15: 1 | G15: 1
A16: Планируемые значения параметров расчета тарифов
A17: 1 | B17: Индекс потребительских цен (ИПЦ) | C17: % | D17: х | E17: х | F17: =#REF! ->  | G17: =#REF! -> 
A18: 2 | B18: Количество активов (УЕ) | C18: усл.ед. | D18: =#REF! ->  | E18: =#REF! ->  | F18: =#REF! ->  | G18: =#REF! -> 
A19: 3 | B19: Величина неподконтрольных расходов (НР) | C19: тыс.руб. | D19: =D46 ->  | E19: =E46 ->  | F19: =F46 ->  | G19: =G46 -> 
A20: 4 | B20: Величина полезного отпуска электрической энергии | C20: млн.кВт.ч. | D20: ='Баланс энергии'!C21-'Баланс энергии'!C23 -> 123827.7201 | E20: ='Баланс энергии'!H21-'Баланс энергии'!H23 -> 0 | F20: ='Баланс энергии'!M21-'Баланс энергии'!M23 -> 119433.434 | G20: ='Баланс энергии'!AG21-'Баланс энергии'!AG23 -> 0
A21: 5 | B21: Прогнозная цена (тариф) покупки потерь электрической энергии | C21: руб./МВт.ч. | D21: =D66 ->  | E21: =E66 ->  | F21: =F66 ->  | G21: =G66 -> 
A22: Расчетные показатели
A23: 1 | B23: Доля подконтрольных расходов на МВт.ч. | C23: руб.МВт.ч. | D23: =IF(D20=0,0,D29/D20/10) ->  | E23: =IF(E20=0,0,E29/E20/10) -> 0 | F23: =IF(F20=0,0,F29/F20/10) ->  | G23: =IF(G20=0,0,G29/G20/10) -> 0
A24: 2 | B24: Проверка прибыли на капитальные вложения (не более 12 % от НВВ на содержание сетей) | C24: % | D24: х | E24: х | F24: х | G24: =IF(G25=0,0,G43/G25) -> 
A25: 3 | B25: НВВ для расчета КВЛ | C25: тыс.руб. | D25: х | E25: х | F25: х | G25: =G63-#REF!/0.8-#REF!-#REF!-#REF! -> 
A26: 4 | B26: Индекс изменения количества активов (ИКА) | C26: % | D26: х | E26: х | F26: х | G26: =#REF! -> 
A27: 5 | B27: Общий коэффициент индексации подконтрольных расходов ПР= ИПЦ*(1+(Кэл*ИКА))*(1-Хэф) | C27: знач. | D27: х | E27: х | F27: х | G27: =#REF! -> 
A28: Подконтрольные расходы организации (ПР)
B29: Итого ПР с учетом индексации: | C29: тыс.руб. | D29: =#REF! ->  | E29: =#REF! ->  | F29: =#REF! ->  | G29: =#REF! -> 
A31: 1 | B31: Амортизация основных средств | C31: тыс.руб. | D31: =#REF! ->  | E31: =#REF! ->  | F31: =#REF! ->  | G31: =ROUND(#REF!,2) -> 
A32: 2 | B32: Страховые взносы | C32: тыс.руб. | D32: =#REF! ->  | E32: =#REF! ->  | F32: =#REF! ->  | G32: =ROUND(#REF!,2) -> 
A33: 3 | B33: Расходы на оплату услуг организаций, осуществляющие регулируемые виды деятельности | C33: тыс.руб. | D33: =#REF! ->  | E33: =#REF! ->  | F33: =#REF! ->  | G33: =ROUND(#REF!,2) -> 
A34: 4 | B34: Налоги и сборы, в том числе: | C34: тыс.руб. | D34: =#REF! ->  | E34: =SUM(E35:E39) ->  | F34: =#REF! ->  | G34: =ROUND(SUM(G35:G39),2) -> 
A35: 4.1 | B35: Плата за землю | C35: тыс.руб. | D35: =#REF! ->  | E35: =#REF! ->  | F35: =#REF! ->  | G35: =ROUND(#REF!,2) -> 
A36: 4.2 | B36: Транспортный налог | C36: тыс.руб. | D36: =#REF! ->  | E36: =#REF! ->  | F36: =#REF! ->  | G36: =ROUND(#REF!,2) -> 
A37: 4.3 | B37: Налог на имущество | C37: тыс.руб. | D37: =#REF! ->  | E37: =#REF! ->  | F37: =#REF! ->  | G37: =ROUND(#REF!,2) -> 
A38: 4.4 | B38: Плата за негативное воздействие на окружающую среду | C38: тыс.руб. | D38: =#REF! ->  | E38: =#REF! ->  | F38: =#REF! ->  | G38: =ROUND(#REF!,2) -> 
A39: 4.5 | B39: Налог на прибыль | C39: тыс.руб. | D39: =#REF! ->  | E39: =#REF! ->  | F39: =#REF! ->  | G39: =ROUND(#REF!,2) -> 
A40: 5 | B40: Плата за аренду имущества | C40: тыс.руб. | D40: =#REF! ->  | E40: =#REF! ->  | F40: =#REF! ->  | G40: =ROUND(#REF!,2) -> 
A41: 6 | B41: Оплата услуг ОАО "ФСК ЕЭС" | C41: тыс.руб. | D41: =#REF! ->  | E41: =#REF! ->  | F41: =#REF! ->  | G41: =ROUND(#REF!,2) -> 
A42: 7 | B42: Прочие обоснованные неподконтрольные расходы | C42: тыс.руб. | D42: =#REF! ->  | E42: =#REF! ->  | F42: =#REF! ->  | G42: =ROUND(#REF!,2) -> 
A43: 8 | B43: Капитальные вложения производственного характера из прибыли | C43: тыс.руб. | D43: =#REF! ->  | E43: =#REF! ->  | F43: =#REF! ->  | G43: =ROUND(#REF!,2) -> 
A44: 9 | B44: Расходы, связанные с компенсацией выпадающих доходов от льготного технологического присоединения | C44: тыс.руб. | D44: =#REF! ->  | E44: х | F44: =#REF! ->  | G44: =ROUND(#REF!,2) -> 
A45: 10 | B45: =#REF! ->  | C45: тыс.руб. | D45: =#REF! ->  | E45: =#REF! ->  | F45: =#REF! ->  | G45: =ROUND(#REF!,2) -> 
B46: Итого НР: | C46: тыс.руб. | D46: =SUM(D31:D34,D40:D45) ->  | E46: =SUM(E31:E34,E40:E45) ->  | F46: =SUM(F31:F34,F40:F45) ->  | G46: =SUM(G31:G34,G40:G45) -> 
A48: Корректировка необходимой валовой выручки
A49: 1 | B49: Корректировка подконтрольных расходов | C49: тыс.руб. | D49: =#REF! ->  | E49: =#REF! ->  | F49: =#REF! ->  | G49: =#REF! -> 
A50: 2 | B50: Корректировка неподконтрольных расходов | C50: тыс.руб. | D50: =#REF! ->  | E50: =#REF! ->  | F50: =#REF! ->  | G50: =#REF! -> 
A51: 3 | B51: Корректировка НВВ с учетом изменения полезного отпуска и цен на электрическую энергию | C51: тыс.руб. | D51: =#REF! ->  | E51: =#REF! ->  | F51: =#REF! ->  | G51: =#REF! -> 
A52: 4 | B52: Корректировка необходимой валовой выручки по доходам от осуществления регулируемой деятельности | C52: тыс.руб. | D52: =#REF! ->  | E52: =#REF! ->  | F52: =#REF! ->  | G52: =#REF! -> 
A53: 5 | B53: Корректировка расходов по обеспечению коммерческого учета ээ | C53: тыс.руб. | D53: =#REF! ->  | E53: =#REF! ->  | F53: =#REF! ->  | G53: =#REF! -> 
A54: 6 | B54: Корректировка НВВ в связи с изменением (неисполнением) инвестиционной программы | C54: тыс.руб. | D54: =#REF! ->  | E54: =#REF! ->  | F54: =#REF! ->  | G54: =#REF! -> 
B55: Итого корректировка НВВ | C55: тыс.руб. | D55: =SUM(D49:D54) ->  | E55: х | F55: =SUM(F49:F54) ->  | G55: =SUM(G49:G54) -> 
A56: Расходы организации на содержание сетей
A57: 1 | B57: Подконтрольные расходы | C57: тыс.руб. | D57: =D29 ->  | E57: =E29 ->  | F57: =F29 ->  | G57: =G29 -> 
A58: 2 | B58: Неподконтрольные расходы | C58: тыс.руб. | D58: =D46 ->  | E58: =E46 ->  | F58: =F46 ->  | G58: =G46 -> 
A59: 3 | B59: Корректировка НВВ на основании фактических данных | C59: тыс.руб. | D59: =D55 ->  | E59: =E55 -> х | F59: =F55 ->  | G59: =G55 -> 
A60: 4 | B60: Корректировка НВВ с учетом надежности и качества оказываемых услуг | C60: тыс.руб. | D60: =#REF! ->  | E60: =#REF! ->  | F60: =#REF! ->  | G60: =ROUND(#REF!,2) -> 
A61: 5 | B61: Экономия расходов на оплату потерь электрической энергии | C61: тыс.руб. | D61: х | E61: х | F61: =#REF! ->  | G61: =#REF! -> 
A62: 6 | B62: Расходы по обеспечению коммерческого учета ээ | C62: тыс.руб. | D62: х | E62: x | F62: x | G62: =#REF! -> 
B63: Итого расходы на содержание электрических сетей: | C63: тыс.руб. | D63: =D57+D58+D59+D60 ->  | E63: =E57+E58 ->  | F63: =F57+F58+F59+F60+F61 ->  | G63: =G57+G58+G59+G60+G61+G62 -> 
A64: Расходы организации на компенсацию потерь
A65: 1 | B65: Величина технологического расхода (потерь) электрической энергии | C65: млн.кВт.ч. | D65: ='Баланс энергии'!C18/1000 -> 16.3892 | E65: ='Баланс энергии'!H18/1000 -> 0 | F65: =#REF! ->  | G65: =#REF! -> 
A66: 2 | B66: Прогнозная цена (тариф) покупки потерь электрической энергии | C66: руб./МВт.ч. | D66: =#REF! ->  | E66: =#REF! ->  | F66: =#REF! ->  | G66: =#REF! -> 
B67: Итого расходы на компенсацию потерь: | C67: тыс.руб. | D67: =D65*D66 ->  | E67: =E65*E66 ->  | F67: =F65*F66 ->  | G67: =G65*G66 -> 
A68: Необходимая валовая выручка (НВВ) организации на оказание услуги по передаче электрической энергии
A69: 1 | B69: Расходы на содержание электрических сетей | C69: тыс.руб. | D69: =D63 ->  | E69: =E63 ->  | F69: =F63 ->  | G69: =G63 -> 
A70: 2 | B70: Расходы на компенсацию потерь | C70: тыс.руб. | D70: =D67 ->  | E70: =E67 ->  | F70: =F67 ->  | G70: =G67 -> 
B71: Необходимая валовая выручка (НВВ) организации на оказание услуги по передаче электрической энергии | C71: тыс.руб. | D71: =D69+D70 ->  | E71: =E69+E70 ->  | F71: =F69+F70 ->  | G71: =G69+G70 -> 

Sheet НВВ для шаблона ЕИАС отчет (hidden)
A2: Наименование организации | B2: Период | C2: Расчет коэффициента индексации | M2: Расчет подконтрольных расходов | AH2: Расчет неподконтрольных расходов | BB2: Расходы, связанные с компенсацией незапланированных расходов или полученного избытка | BC2: Итого НВВ на содержание сетей | BD2: в том числе | BF2: Доля стороннего отпуска в сеть от организаций, занимающихся несколькими видами деятельности (без собственных нужд) | BG2: Отношение НВВ на содержание сетей текущего года к предыдущему года | BH2: Поступление в сеть электроэнергии | BI2: Объем технологического расхода (потерь) | BJ2: Тариф на покупку потерь | BK2: Норматив техноло-гического расхода (потерь) электро-энергии | BL2: Итого расходов на оплату потерь | BM2: в том числе | BO2: Прирост расходов на оплату потерь текущего года к предыдущему году | BP2: Поступление в сеть мощности | BQ2: Уровень надежности реализуемых товаров (услуг) (П п) | BR2: Уровень качества реализуемых товаров (услуг) (П тсо) | BS2: Уровень качества реализуемых товаров (услуг) (П тпр)
C3: Инфляция | D3: Индекс эффективности операционных расходов | E3: Количество активов, всего | F3: ВН | G3: СН1 | H3: СН2 | I3: НН | J3: Индекс изменения количества активов | K3: Коэффициент эластичности затрат по росту активов | L3: Итого коэффициент индексации | M3: Материальные затраты | N3: Сырье, материалы, запасные части, инструмент, топливо | O3: Работы и услуги производственного характера (в т.ч. услуги сторонних организаций по содержанию сетей и распределительных устройств) | P3: Расходы на оплату труда | Q3: Прочие расходы, всего, в том числе: | R3: Ремонт основных фондов | S3: Оплата работ и услуг сторонних организаций | T3: услуги связи | U3: Расходы на услуги вневедомственной охраны и коммунального хозяйства | V3: Расходы на юридические и информационные услуги | W3: Расходы на аудиторские и консультационные услуги | X3: Транспортные услуги | Y3: Прочие услуги сторонних организаций | Z3: Расходы на командировки и представительские | AA3: Расходы на подготовку кадров | AB3: Расходы на обеспечение нормальных условий труда и мер по технике безопасности | AC3: Расходы на страхование | AD3: Другие прочие расходы | AE3: Электроэнергия на хоз. нужды | AF3: Подконтрольные расходы из прибыли | AG3: ИТОГО подконтрольные расходы | AH3: Оплата услуг ОАО "ФСК ЕЭС" | AI3: в том числе | AK3: Теплоэнергия | AL3: Аренда, всего | AM3: в том числе аренда объектов электро- сетевого комплекса | AN3: Налоги (без учета налога на прибыль), всего, в том числе: | AO3: плата за землю | AP3: Налог на имущество | AQ3: Прочие налоги и сборы | AR3: Отчисления на социальные нужды (ЕСН) | AS3: Прочие неподконтрольные расходы | AT3: Налог на прибыль, в том числе: | AU3: налог на прибыль на капитальные вложения | AV3: Выпадающие доходы по п.87 Основ ценообразования | AW3: Амортизация ОС | AX3: Прибыль на капитальные вложения | AY3: Возврат заемных средств, направляемый на финансирование капитальных вложений | AZ3: Проверка прибыли на капитальные вложения (не более 12% от НВВ на содержание сетей) | BA3: ИТОГО неподконтрольных расходов
AI4: Оплата услуг ОАО "ФСК ЕЭС" 1 полугодие | AJ4: Оплата услуг ОАО "ФСК ЕЭС" 2 полугодие | BD4: НВВ на 1 полугодие | BE4: НВВ на 2 полугодие | BM4: расходы на 1 полугодие | BN4: расходы на 2 полугодие
C5: % | D5: % | E5: у.е. | F5: у.е. | G5: у.е. | H5: у.е. | I5: у.е. | J5: % | M5: тыс.руб | N5: тыс.руб | O5: тыс.руб | P5: тыс.руб | Q5: тыс.руб | R5: тыс.руб | S5: тыс.руб | T5: тыс.руб | U5: тыс.руб | V5: тыс.руб | W5: тыс.руб | X5: тыс.руб | Y5: тыс.руб | Z5: тыс.руб | AA5: тыс.руб | AB5: тыс.руб | AC5: тыс.руб | AD5: тыс.руб | AE5: тыс.руб | AF5: тыс.руб | AG5: тыс.руб | AH5: тыс.руб | AI5: тыс.руб | AJ5: тыс.руб | AK5: тыс.руб | AL5: тыс.руб | AM5: тыс.руб | AN5: тыс.руб | AO5: тыс.руб | AP5: тыс.руб | AQ5: тыс.руб | AR5: тыс.руб | AS5: тыс.руб | AT5: тыс.руб | AU5: тыс.руб | AV5: тыс.руб | AW5: тыс.руб | AX5: тыс.руб | AY5: тыс.руб | AZ5: % | BA5: тыс.руб | BB5: тыс.руб | BC5: тыс.руб | BD5: тыс.руб | BE5: тыс.руб | BF5: % | BG5: % | BH5: млн.кВтч | BI5: млн.кВтч | BJ5: руб./МВтч | BK5: % | BL5: тыс.руб | BM5: тыс.руб | BN5: тыс.руб | BO5: % | BP5: МВт
A6: А | B6: Б | C6: 0.1 | D6: 0.2 | E6: 0.3 | F6: 0.3.1 | G6: 0.3.2 | H6: 0.3.3 | I6: 0.3.4 | J6: 0.4 | K6: 0.5 | L6: 0.6 | M6: 1.1 | N6: 1.1.1 | O6: 1.1.2 | P6: 1.2 | Q6: 1.3 | R6: 1.3.1 | S6: 1.3.2 | T6: 1.3.2.1 | U6: 1.3.2.2 | V6: 1.3.2.3 | W6: 1.3.2.4 | X6: 1.3.2.5 | Y6: 1.3.2.6 | Z6: 1.3.3 | AA6: 1.3.4 | AB6: 1.3.5 | AC6: 1.3.6 | AD6: 1.3.7 | AE6: 1.4 | AF6: 1.5 | AG6: 1.6 | AH6: 2.1 | AI6: 2.1.1 | AJ6: 2.1.2 | AK6: 2.2 | AL6: 2.3 | AM6: 2.3.1 | AN6: 2.4 | AO6: 2.4.1 | AP6: 2.4.2 | AQ6: 2.4.3 | AR6: 2.5 | AS6: 2.6 | AT6: 2.7 | AU6: 2.7.1 | AV6: 2.8 | AW6: 2.9 | AX6: 2.10 | AY6: 2.11 | AZ6: 2.12 | BA6: 2.13 | BB6: 3 | BC6: 4 | BD6: 4.1 | BE6: 4.2 | BF6: 5 | BG6: 6 | BH6: 7 | BI6: 8 | BJ6: 9 | BK6: 10 | BL6: 11 | BM6: 11.1 | BN6: 11.2 | BO6: 12 | BP6: 13 | BQ6: 14 | BR6: 15.1 | BS6: 15.2
A7: =#REF! ->  | B7: 2020 | D7: =#REF! ->  | E7: =SUM(F7:I7) -> 0 | K7: 0.75 | M7: =SUM(N7:O7) ->  | N7: =#REF! ->  | O7: =#REF! ->  | P7: =#REF! ->  | Q7: =R7+S7+Z7+AA7+AB7+AC7+AD7+AC7+AF7 ->  | R7: =#REF! ->  | S7: =SUM(T7:Y7) ->  | Y7: =#REF! ->  | Z7: =#REF! ->  | AA7: =#REF! ->  | AB7: =#REF! ->  | AC7: =#REF!+#REF! ->  | AE7: =#REF! ->  | AF7: =#REF! ->  | AG7: =M7+P7+Q7 ->  | AH7: =#REF! ->  | AI7: =AH7/2 ->  | AJ7: =AI7 ->  | AK7: =#REF! ->  | AL7: =#REF! ->  | AM7: =#REF! ->  | AN7: =SUM(AO7:AQ7) ->  | AO7: =#REF! ->  | AP7: =#REF! ->  | AQ7: =#REF!+#REF! ->  | AR7: =#REF! ->  | AS7: =#REF! ->  | AT7: =#REF! ->  | AU7: =AX7/0.8*0.2 ->  | AV7: =#REF! ->  | AW7: =#REF! ->  | AX7: =#REF! ->  | AY7: =#REF! ->  | AZ7: =AX7/0.8*0.2 ->  | BA7: =#REF! ->  | BB7: =#REF! ->  | BC7: =#REF! ->  | BD7: =#REF! ->  | BH7: ='НВВ для шаблона ЕИАС предел'!BH7 -> 138485.138 | BI7: ='Баланс энергии'!AG18 -> 0 | BK7: =IF(BH7=0,0,BI7/BH7) -> 0 | BL7: =BI7*BJ7 -> 0 | BM7: =#REF! ->  | BN7: =BL7-BM7 ->  | BQ7: ='НВВ по данным экспертов'!F13 -> 1.4461 | BR7: ='НВВ по данным экспертов'!F14 -> 0.7853 | BS7: ='НВВ по данным экспертов'!F15 -> 1
B8: 2021 | C8: =#REF! ->  | D8: =D7 ->  | E8: =SUM(F8:I8) ->  | F8: =#REF! ->  | G8: =#REF! ->  | H8: =#REF! ->  | I8: =#REF! ->  | J8: =IF(E7=0,0,(E8-E7)/E7*K8) -> 0 | K8: 0.75 | L8: =(1+C8)*(1-D8)*(1+J8) ->  | M8: =SUM(N8:O8) ->  | N8: =N7*$L8 ->  | O8: =O7*L8 ->  | P8: =P7*$L8 ->  | Q8: =R8+S8+Z8+AA8+AB8+AC8+AD8+AE8+AF8 ->  | R8: =R7*$L8 ->  | S8: =SUM(T8:Y8) ->  | T8: =T7*$L8 ->  | U8: =U7*L8 ->  | V8: =V7*L8 ->  | W8: =W7*$L8 ->  | X8: =X7*$L8 ->  | AG8: =M8+P8+Q8 ->  | AH8: =#REF! ->  | AI8: =AH8/2 ->  | AJ8: =AI8 ->  | AK8: ='НВВ по данным экспертов'!$G$33 ->  | AL8: ='НВВ по данным экспертов'!$G$40 ->  | AN8: =SUM(AO8:AQ8) ->  | AO8: ='НВВ по данным экспертов'!$G$35 ->  | AP8: ='НВВ по данным экспертов'!$G$37 ->  | AQ8: =#REF!+#REF! ->  | AR8: =#REF! ->  | AS8: =#REF! ->  | AT8: =#REF! ->  | AU8: =AX7/0.8*0.2 ->  | AV8: =#REF! ->  | AW8: =#REF! ->  | AX8: =#REF! ->  | AY8: =#REF! ->  | AZ8: =nerr((AX8+AY8)/(BC8-AH8-AU8-AX8-AY8-AM8)) ->  | BA8: =AH8+AK8+AL8+AN8+AS8+AT8+AV8+AR8+AW8+AX8+AY8 ->  | BB8: =#REF! ->  | BC8: =SUM(BA8,BB8,AG8) ->  | BF8: =nerr((BD8+BE8)/BC8) ->  | BG8: =nerr((BC8-BC7)/BC7) ->  | BH8: ='Баланс энергии'!AG8 -> 0 | BI8: =BI7 -> 0 | BK8: =IF(BH8=0,0,BI8/BH8) -> 0 | BL8: =BI8*BJ8 -> 0 | BM8: ='НВВ по данным экспертов'!#REF!/2 ->  | BN8: =BL8-BM8 ->  | BO8: =nerr((BL8-BL7)/BL7) ->  | BQ8: ='НВВ по данным экспертов'!G13 -> 1.4244 | BR8: ='НВВ по данным экспертов'!G14 -> 0.6929 | BS8: ='НВВ по данным экспертов'!G15 -> 1
B9: 2022 | D9: =D8 ->  | E9: =SUM(F9:I9) ->  | F9: =#REF! ->  | G9: =#REF! ->  | H9: =#REF! ->  | I9: =#REF! ->  | J9: =IF(E8=0,0,(E9-E8)/E8*K9) ->  | K9: 0.75 | L9: =(1+C9)*(1-D9)*(1+J9) ->  | M9: =SUM(N9:O9) ->  | N9: =N8*$L9 ->  | O9: =O8*L9 ->  | P9: =P8*$L9 ->  | Q9: =R9+S9+Z9+AA9+AB9+AC9+AD9+AE9+AF9 ->  | R9: =R8*$L9 ->  | S9: =SUM(T9:Y9) ->  | T9: =T8*$L9 ->  | U9: =U8*L9 ->  | V9: =V8*L9 ->  | W9: =W8*$L9 ->  | AG9: =M9+P9+Q9 ->  | AH9: =AI9+AJ9 ->  | AI9: =#REF! ->  | AJ9: =#REF! ->  | AN9: =SUM(AO9:AQ9) -> 0 | AZ9: =nerr((AX9+AY9)/(BC9-AH9-AU9-AX9-AY9-AM9)) ->  | BA9: =AH9+AK9+AL9+AN9+AS9+AT9+AV9+AR9+AW9+AX9+AY9 ->  | BC9: =SUM(BA9,BB9,AG9) ->  | BF9: =nerr((BD9+BE9)/BC9) ->  | BG9: =nerr((BC9-BC8)/BC8) ->  | BI9: =BI8 -> 0 | BK9: =IF(BH9=0,0,BI9/BH9) -> 0 | BL9: =BI9*BJ9 -> 0 | BM9: ='НВВ по данным экспертов'!#REF!/2 ->  | BN9: =BL9-BM9 ->  | BO9: =nerr((BL9-BL8)/BL8) -> 
B10: 2023 | D10: =D9 ->  | E10: =SUM(F10:I10) -> 0 | J10: =IF(E9=0,0,(E10-E9)/E9*K10) ->  | K10: 0.75 | L10: =(1+C10)*(1-D10)*(1+J10) ->  | M10: =SUM(N10:O10) ->  | N10: =N9*$L10 ->  | O10: =O9*L10 ->  | P10: =P9*$L10 ->  | Q10: =R10+S10+Z10+AA10+AB10+AC10+AD10+AE10+AF10 ->  | R10: =R9*$L10 ->  | S10: =SUM(T10:Y10) ->  | T10: =T9*$L10 ->  | U10: =U9*L10 ->  | V10: =V9*L10 ->  | W10: =W9*$L10 ->  | AG10: =M10+P10+Q10 ->  | AH10: =AI10+AJ10 -> 0 | AN10: =SUM(AO10:AQ10) -> 0 | AZ10: =nerr((AX10+AY10)/(BC10-AH10-AU10-AX10-AY10-AM10)) ->  | BA10: =AH10+AK10+AL10+AN10+AS10+AT10+AV10+AR10+AW10+AX10+AY10 -> 0 | BC10: =SUM(BA10,BB10,AG10) ->  | BF10: =nerr((BD10+BE10)/BC10) ->  | BG10: =nerr((BC10-BC9)/BC9) ->  | BI10: =BI9 -> 0 | BK10: =IF(BH10=0,0,BI10/BH10) -> 0 | BL10: =BI10*BJ10 -> 0 | BM10: ='НВВ по данным экспертов'!#REF!/2 ->  | BN10: =BL10-BM10 ->  | BO10: =nerr((BL10-BL9)/BL9) -> 
B11: 2024 | D11: =D10 ->  | E11: =SUM(F11:I11) -> 0 | J11: =IF(E10=0,0,(E11-E10)/E10*K11) -> 0 | K11: 0.75 | L11: =(1+C11)*(1-D11)*(1+J11) ->  | M11: =SUM(N11:O11) ->  | N11: =N10*$L11 ->  | O11: =O10*L11 ->  | P11: =P10*$L11 ->  | Q11: =R11+S11+Z11+AA11+AB11+AC11+AD11+AE11+AF11 ->  | R11: =R10*$L11 ->  | S11: =SUM(T11:Y11) ->  | T11: =T10*$L11 ->  | U11: =U10*L11 ->  | V11: =V10*L11 ->  | W11: =W10*$L11 ->  | AG11: =M11+P11+Q11 ->  | AH11: =AI11+AJ11 -> 0 | AN11: =SUM(AO11:AQ11) -> 0 | AZ11: =((AX11+AY11)/(BC11-AH11-AU11-AX11-AY11-AM11)) ->  | BA11: =AH11+AK11+AL11+AN11+AS11+AT11+AV11+AR11+AW11+AX11+AY11 -> 0 | BC11: =SUM(BA11,BB11,AG11) ->  | BF11: =((BD11+BE11)/BC11) ->  | BG11: =nerr((BC11-BC10)/BC10) ->  | BI11: =BI10 -> 0 | BK11: =IF(BH11=0,0,BI11/BH11) -> 0 | BL11: =BI11*BJ11 -> 0 | BM11: ='НВВ по данным экспертов'!#REF!/2 ->  | BN11: =BL11-BM11 ->  | BO11: =nerr((BL11-BL10)/BL10) -> 

Sheet НВВ для шаблона ЕИАС предел (hidden)
A2: Наименование организации | B2: Период | C2: Расчет коэффициента индексации | M2: Расчет подконтрольных расходов | AH2: Расчет неподконтрольных расходов | BB2: Расходы, связанные с компенсацией незапланированных расходов или полученного избытка | BC2: Итого НВВ на содержание сетей | BD2: в том числе | BF2: Доля стороннего отпуска в сеть от организаций, занимающихся несколькими видами деятельности (без собственных нужд) | BG2: Отношение НВВ на содержание сетей текущего года к предыдущему года | BH2: Поступление в сеть электроэнергии | BI2: Объем технологического расхода (потерь) | BJ2: Тариф на покупку потерь | BK2: Норматив техноло-гического расхода (потерь) электро-энергии | BL2: Итого расходов на оплату потерь | BM2: в том числе | BO2: Прирост расходов на оплату потерь текущего года к предыдущему году | BP2: Поступление в сеть мощности | BQ2: Уровень надежности реализуемых товаров (услуг) (П п) | BR2: Уровень качества реализуемых товаров (услуг) (П тсо) | BS2: Уровень качества реализуемых товаров (услуг) (П тпр)
C3: Инфляция | D3: Индекс эффективности операционных расходов | E3: Количество активов, всего | F3: ВН | G3: СН1 | H3: СН2 | I3: НН | J3: Индекс изменения количества активов | K3: Коэффициент эластичности затрат по росту активов | L3: Итого коэффициент индексации | M3: Материальные затраты | N3: Сырье, материалы, запасные части, инструмент, топливо | O3: Работы и услуги производственного характера (в т.ч. услуги сторонних организаций по содержанию сетей и распределительных устройств) | P3: Расходы на оплату труда | Q3: Прочие расходы, всего, в том числе: | R3: Ремонт основных фондов | S3: Оплата работ и услуг сторонних организаций | T3: услуги связи | U3: Расходы на услуги вневедомственной охраны и коммунального хозяйства | V3: Расходы на юридические и информационные услуги | W3: Расходы на аудиторские и консультационные услуги | X3: Транспортные услуги | Y3: Прочие услуги сторонних организаций | Z3: Расходы на командировки и представительские | AA3: Расходы на подготовку кадров | AB3: Расходы на обеспечение нормальных условий труда и мер по технике безопасности | AC3: Расходы на страхование | AD3: Другие прочие расходы | AE3: Электроэнергия на хоз. нужды | AF3: Подконтрольные расходы из прибыли | AG3: ИТОГО подконтрольные расходы | AH3: Оплата услуг ОАО "ФСК ЕЭС" | AI3: в том числе | AK3: Теплоэнергия | AL3: Аренда, всего | AM3: в том числе аренда объектов электро- сетевого комплекса | AN3: Налоги (без учета налога на прибыль), всего, в том числе: | AO3: плата за землю | AP3: Налог на имущество | AQ3: Прочие налоги и сборы | AR3: Отчисления на социальные нужды (ЕСН) | AS3: Прочие неподконтрольные расходы | AT3: Налог на прибыль, в том числе: | AU3: налог на прибыль на капитальные вложения | AV3: Выпадающие доходы по п.87 Основ ценообразования | AW3: Амортизация ОС | AX3: Прибыль на капитальные вложения | AY3: Возврат заемных средств, направляемый на финансирование капитальных вложений | AZ3: Проверка прибыли на капитальные вложения (не более 12% от НВВ на содержание сетей) | BA3: ИТОГО неподконтрольных расходов
AI4: Оплата услуг ОАО "ФСК ЕЭС" 1 полугодие | AJ4: Оплата услуг ОАО "ФСК ЕЭС" 2 полугодие | BD4: НВВ на 1 полугодие | BE4: НВВ на 2 полугодие | BM4: расходы на 1 полугодие | BN4: расходы на 2 полугодие
C5: % | D5: % | E5: у.е. | F5: у.е. | G5: у.е. | H5: у.е. | I5: у.е. | J5: % | M5: тыс.руб | N5: тыс.руб | O5: тыс.руб | P5: тыс.руб | Q5: тыс.руб | R5: тыс.руб | S5: тыс.руб | T5: тыс.руб | U5: тыс.руб | V5: тыс.руб | W5: тыс.руб | X5: тыс.руб | Y5: тыс.руб | Z5: тыс.руб | AA5: тыс.руб | AB5: тыс.руб | AC5: тыс.руб | AD5: тыс.руб | AE5: тыс.руб | AF5: тыс.руб | AG5: тыс.руб | AH5: тыс.руб | AI5: тыс.руб | AJ5: тыс.руб | AK5: тыс.руб | AL5: тыс.руб | AM5: тыс.руб | AN5: тыс.руб | AO5: тыс.руб | AP5: тыс.руб | AQ5: тыс.руб | AR5: тыс.руб | AS5: тыс.руб | AT5: тыс.руб | AU5: тыс.руб | AV5: тыс.руб | AW5: тыс.руб | AX5: тыс.руб | AY5: тыс.руб | AZ5: % | BA5: тыс.руб | BB5: тыс.руб | BC5: тыс.руб | BD5: тыс.руб | BE5: тыс.руб | BF5: % | BG5: % | BH5: млн.кВтч | BI5: млн.кВтч | BJ5: руб./МВтч | BK5: % | BL5: тыс.руб | BM5: тыс.руб | BN5: тыс.руб | BO5: % | BP5: МВт
A6: А | B6: Б | C6: 0.1 | D6: 0.2 | E6: 0.3 | F6: 0.3.1 | G6: 0.3.2 | H6: 0.3.3 | I6: 0.3.4 | J6: 0.4 | K6: 0.5 | L6: 0.6 | M6: 1.1 | N6: 1.1.1 | O6: 1.1.2 | P6: 1.2 | Q6: 1.3 | R6: 1.3.1 | S6: 1.3.2 | T6: 1.3.2.1 | U6: 1.3.2.2 | V6: 1.3.2.3 | W6: 1.3.2.4 | X6: 1.3.2.5 | Y6: 1.3.2.6 | Z6: 1.3.3 | AA6: 1.3.4 | AB6: 1.3.5 | AC6: 1.3.6 | AD6: 1.3.7 | AE6: 1.4 | AF6: 1.5 | AG6: 1.6 | AH6: 2.1 | AI6: 2.1.1 | AJ6: 2.1.2 | AK6: 2.2 | AL6: 2.3 | AM6: 2.3.1 | AN6: 2.4 | AO6: 2.4.1 | AP6: 2.4.2 | AQ6: 2.4.3 | AR6: 2.5 | AS6: 2.6 | AT6: 2.7 | AU6: 2.7.1 | AV6: 2.8 | AW6: 2.9 | AX6: 2.10 | AY6: 2.11 | AZ6: 2.12 | BA6: 2.13 | BB6: 3 | BC6: 4 | BD6: 4.1 | BE6: 4.2 | BF6: 5 | BG6: 6 | BH6: 7 | BI6: 8 | BJ6: 9 | BK6: 10 | BL6: 11 | BM6: 11.1 | BN6: 11.2 | BO6: 12 | BP6: 13 | BQ6: 14 | BR6: 15.1 | BS6: 15.2
B7: 2020 | C7: =#REF! ->  | D7: =#REF! ->  | E7: =SUM(F7:I7) ->  | F7: =#REF! ->  | G7: =#REF! ->  | H7: =#REF! ->  | I7: =#REF! ->  | M7: =SUM(N7:O7) ->  | N7: =#REF! ->  | O7: =#REF! ->  | P7: =#REF! ->  | Q7: =R7+S7+Z7+AA7+AB7+AC7+AD7+AE7+AF7 ->  | R7: =#REF! ->  | S7: =SUM(T7:Y7) -> 0 | Z7: =#REF! ->  | AA7: =#REF! ->  | AB7: =#REF! ->  | AC7: =#REF! ->  | AD7: =#REF!+#REF! ->  | AF7: =#REF! ->  | AG7: =M7+P7+Q7 ->  | AH7: =#REF! ->  | AI7: =AH7/2 ->  | AJ7: =AI7 ->  | AK7: =#REF! ->  | AL7: =#REF! ->  | AM7: =#REF! ->  | AN7: =SUM(AO7:AQ7) ->  | AO7: =#REF! ->  | AP7: =#REF! ->  | AQ7: =#REF!+#REF! ->  | AR7: =#REF! ->  | AS7: =#REF! ->  | AT7: =#REF! ->  | AU7: =AX7/0.8*0.2 ->  | AV7: =#REF! ->  | AW7: =#REF! ->  | AX7: =#REF! ->  | AY7: =#REF! ->  | BA7: =AH7+AK7+AL7+AN7+AS7+AT7+AV7+AR7+AW7+AX7+AY7 ->  | BB7: =#REF!+#REF! ->  | BC7: =SUM(BA7,BB7,AG7) ->  | BH7: ='Баланс энергии'!M8 -> 138485.138 | BI7: ='Баланс энергии'!M18 -> 16064.3 | BK7: =IF(BH7=0,0,BI7/BH7) -> 0.1160001733 | BL7: =BI7*BJ7 -> 0 | BM7: =#REF! ->  | BN7: =BL7-BM7 ->  | BP7: ='Баланс мощности'!H9 -> 0 | BQ7: =#REF! ->  | BR7: =#REF! ->  | BS7: =#REF! -> 
B8: 2021 | C8: =#REF! ->  | D8: =D7 ->  | E8: =#REF! ->  | F8: =#REF! ->  | G8: =#REF! ->  | H8: =#REF! ->  | I8: =#REF! ->  | J8: =IF(E7=0,0,(E8-E7)/E7*K8) ->  | K8: 0.75 | L8: =(1+C8)*(1-D8)*(1+J8) ->  | M8: =SUM(N8:O8) ->  | N8: =N7*$L8 ->  | O8: =O7*L8 ->  | P8: =P7*$L8 ->  | Q8: =R8+S8+Z8+AA8+AB8+AC8+AD8+AE8+AF8 ->  | R8: =R7*$L8 ->  | S8: =SUM(T8:Y8) ->  | T8: =T7*$L8 ->  | U8: =U7*L8 ->  | V8: =V7*L8 ->  | W8: =W7*$L8 ->  | X8: =X7*$L8 ->  | AG8: =M8+P8+Q8 ->  | AH8: =AI8+AJ8 ->  | AI8: =#REF! ->  | AJ8: =#REF! ->  | AK8: =#REF! ->  | AL8: =#REF! ->  | AM8: =#REF! ->  | AN8: =SUM(AO8:AQ8) ->  | AO8: =#REF! ->  | AP8: =#REF! ->  | AQ8: =#REF!+#REF! ->  | AR8: =#REF! ->  | AS8: =#REF! ->  | AT8: =#REF! ->  | AU8: =AX7/0.8*0.2 ->  | AV8: =#REF! ->  | AW8: =#REF! ->  | AX8: =#REF! ->  | AY8: =#REF! ->  | AZ8: =nerr((AX8+AY8)/(BC8-AH8-AU8-AX8-AY8-AM8)) ->  | BA8: =AH8+AK8+AL8+AN8+AS8+AT8+AV8+AR8+AW8+AX8+AY8 ->  | BB8: =#REF! ->  | BC8: =SUM(BA8,BB8,AG8) ->  | BF8: =nerr((BD8+BE8)/BC8) ->  | BG8: =nerr((BC8-BC7)/BC7) ->  | BH8: ='Баланс энергии'!R8 -> 135269.605 | BI8: ='Баланс энергии'!R18 -> 15690.86084 | BK8: =IF(BH8=0,0,BI8/BH8) -> 0.1159969444 | BL8: =BI8*BJ8 -> 0 | BN8: =BL8-BM8 -> 0 | BO8: =nerr((BL8-BL7)/BL7) ->  | BP8: ='Баланс мощности'!H9 -> 0 | BQ8: =#REF! ->  | BR8: =#REF! ->  | BS8: =#REF! -> 
B9: 2022 | D9: =D8 ->  | J9: =IF(E8=0,0,(E9-E8)/E8*K9) ->  | K9: 0.75 | L9: =(1+C9)*(1-D9)*(1+J9) ->  | M9: =SUM(N9:O9) ->  | N9: =N8*$L9 ->  | O9: =O8*L9 ->  | P9: =P8*$L9 ->  | Q9: =R9+S9+Z9+AA9+AB9+AC9+AD9+AE9+AF9 ->  | R9: =R8*$L9 ->  | S9: =SUM(T9:Y9) ->  | T9: =T8*$L9 ->  | U9: =U8*L9 ->  | V9: =V8*L9 ->  | W9: =W8*$L9 ->  | AG9: =M9+P9+Q9 ->  | AH9: =AI9+AJ9 -> 0 | AN9: =SUM(AO9:AQ9) -> 0 | AZ9: =nerr((AX9+AY9)/(BC9-AH9-AU9-AX9-AY9-AM9)) ->  | BA9: =AH9+AK9+AL9+AN9+AS9+AT9+AV9+AR9+AW9+AX9+AY9 -> 0 | BC9: =SUM(BA9,BB9,AG9) ->  | BF9: =nerr((BD9+BE9)/BC9) ->  | BG9: =nerr((BC9-BC8)/BC8) ->  | BK9: =IF(BH9=0,0,BI9/BH9) -> 0 | BL9: =BI9*BJ9 -> 0 | BN9: =BL9-BM9 -> 0 | BO9: =nerr((BL9-BL8)/BL8) -> 
B10: 2023 | D10: =D9 ->  | J10: =IF(E9=0,0,(E10-E9)/E9*K10) -> 0 | K10: 0.75 | L10: =(1+C10)*(1-D10)*(1+J10) ->  | M10: =SUM(N10:O10) ->  | N10: =N9*$L10 ->  | O10: =O9*L10 ->  | P10: =P9*$L10 ->  | Q10: =R10+S10+Z10+AA10+AB10+AC10+AD10+AE10+AF10 ->  | R10: =R9*$L10 ->  | S10: =SUM(T10:Y10) ->  | T10: =T9*$L10 ->  | U10: =U9*L10 ->  | V10: =V9*L10 ->  | W10: =W9*$L10 ->  | AG10: =M10+P10+Q10 ->  | AH10: =AI10+AJ10 -> 0 | AN10: =SUM(AO10:AQ10) -> 0 | AZ10: =nerr((AX10+AY10)/(BC10-AH10-AU10-AX10-AY10-AM10)) ->  | BA10: =AH10+AK10+AL10+AN10+AS10+AT10+AV10+AR10+AW10+AX10+AY10 -> 0 | BC10: =SUM(BA10,BB10,AG10) ->  | BF10: =nerr((BD10+BE10)/BC10) ->  | BG10: =nerr((BC10-BC9)/BC9) ->  | BK10: =IF(BH10=0,0,BI10/BH10) -> 0 | BL10: =BI10*BJ10 -> 0 | BN10: =BL10-BM10 -> 0 | BO10: =nerr((BL10-BL9)/BL9) -> 
B11: 2024 | D11: =D10 ->  | J11: =IF(E10=0,0,(E11-E10)/E10*K11) -> 0 | K11: 0.75 | L11: =(1+C11)*(1-D11)*(1+J11) ->  | M11: =SUM(N11:O11) ->  | N11: =N10*$L11 ->  | O11: =O10*L11 ->  | P11: =P10*$L11 ->  | Q11: =R11+S11+Z11+AA11+AB11+AC11+AD11+AE11+AF11 ->  | R11: =R10*$L11 ->  | S11: =SUM(T11:Y11) ->  | T11: =T10*$L11 ->  | U11: =U10*L11 ->  | V11: =V10*L11 ->  | W11: =W10*$L11 ->  | AG11: =M11+P11+Q11 ->  | AH11: =AI11+AJ11 -> 0 | AN11: =SUM(AO11:AQ11) -> 0 | AZ11: =((AX11+AY11)/(BC11-AH11-AU11-AX11-AY11-AM11)) ->  | BA11: =AH11+AK11+AL11+AN11+AS11+AT11+AV11+AR11+AW11+AX11+AY11 -> 0 | BC11: =SUM(BA11,BB11,AG11) ->  | BF11: =((BD11+BE11)/BC11) ->  | BG11: =nerr((BC11-BC10)/BC10) ->  | BK11: =IF(BH11=0,0,BI11/BH11) -> 0 | BL11: =BI11*BJ11 -> 0 | BN11: =BL11-BM11 -> 0 | BO11: =nerr((BL11-BL10)/BL10) -> 

Sheet Форма 8.1 эксперты (hidden)
A2: Форма_8.1 - Журнал учета данных первичной информации по всем прекращениям передачи электрической энергии произошедших на объектах сетевой организации ____ год
A3: =#REF! -> 
A4: Наименование электросетевой организации
A6: Данные о факте прекращения передачи электрической энергии | M6: Данные о масштабе прекращения передачи электрической энергии в сетевой организации | Z6: Перечень смежных сетевых организаций, затронутых прекращением передачи электрической энергии | AA6: Данные о причинах прекращения передачи электрической энергии и их расследовании | AD6: Учет в показателях надежности, в т.ч. индикативных показателях надежности (0 - нет, 1 - да) 3
A7: Номер прекращения передачи электрической энергии / Номер итоговой строки | B7: Наименование структурной единицы сетевой организации 1 | C7: Вид объекта: КЛ, ВЛ, КВЛ, ПС, ТП, РП | D7: Диспетчерское наименование объекта электросетевого хозяйства сетевой организации, в результате отключения которой произошло прекращение передачи электроэнергии потребителям услуг | E7: Высший класс напряжения отключенного оборудования сетевой организации, Кв | F7: Время и дата начала прекращения передачи электрической энергии | H7: Время и дата восстановления режима потребления электрической энергии потребителей услуг | J7: Вид прекращения передачи электроэнергии (П, А, В) 2 | L7: Продолжительность прекращения передачи электрической энергии, час. | M7: Перечень объектов электросетевого хозяйства, отключение которых привело к прекращению передачи электрической энергии потребителям услуг (ПС, ТП, РП, ВЛ, КЛ) | N7: Перечень потребителей 1-й и 2-й категорий надежности, в отношении которых произошло полное ограничение режима потребления электрической энергии | O7: Перечень потребителей 1-й и 2-й категорий надежности, в отношении которых произошло частичное ограничение режима потребления электрической энергии | P7: Количество точек поставки потребителей услуг сетевой организации, в отношении которых произошел перерыв электроснабжения, шт., в том числе: | Y7: Суммарный объем фактической нагрузки (мощности) на присоединениях потребителей услуг, по которым произошло прекращение передачи электрической энергии на момент возникновения такого события, кВт | AA7: Номер и дата акта расследования технологического нарушения, записи в оперативном журнале | AB7: Код организационной причины аварии | AC7: Код технической причины повреждения оборудования
P8: Всего | Q8: в разделении категорий надежности потребителей электрической энергии | T8: в разделении уровней напряжения ЭПУ потребителя электрической энергии | X8: Смежные сетевые организации и производители электрической энергии
F9: ДД.ММ.ГГГГ (00:00:00) | G9: часы, минуты (00:00) | H9: ДД.ММ.ГГГГ (00:00:00) | I9: часы, минуты (00:00) | Q9: 1-я категория надежности | R9: 2-я категория надежности | S9: 3-я категория надежности | T9: BH (110 кВ и выше) | U9: CH1 (35 кВ) | V9: CH2 (6-20 кВ) | W9: HH (0,22-1 кВ)
A10: 1 | B10: 2 | C10: 3 | D10: 4 | E10: 5 | F10: 6 | H10: 7 | J10: 8 | L10: 9 | M10: 10 | N10: 11 | O10: 12 | P10: 13 | Q10: 14 | R10: 15 | S10: 16 | T10: 17 | U10: 18 | V10: 19 | W10: 20 | X10: 21 | Y10: 22 | Z10: 23 | AA10: 24 | AB10: 25 | AC10: 26 | AD10: 27
K11: =IF((H11=""),0,H11-F11) -> 0 | L11: =(IF((I11=""),0,IF((I11>0),K11-G11+I11,I11-G11)))*24 -> 0 | P11: =Q11+R11+S11+X11 -> 0 | AE11: =(IF(AND(J11=$J$21,AD11=1),P11*L11,0)) -> 0 | AF11: =IF(J11=$J$19,P11*L11,0) -> 0
K12: 0 | L12: 0 | P12: 0 | AE12: 0 | AF12: 0
K13: 0 | L13: 0 | P13: 0 | AE13: 0 | AF13: 0
K14: 0 | L14: 0 | P14: 0 | AE14: 0 | AF14: 0
K15: 0 | L15: 0 | P15: 0 | AE15: 0 | AF15: 0
K16: 0 | L16: 0 | P16: 0 | AE16: 0 | AF16: 0
A17: Добавить
A18: Итого по всем прекращениям передачи электрической энергии за отчетный период: | C18: х | D18: х | E18: х | F18: х | H18: х | J18: И | L18: =SUBTOTAL(9,L11:L16) -> 0 | M18: х | N18: х | O18: х | P18: =SUBTOTAL(9,P11:P16) -> 0 | Q18: 0 | R18: 0 | S18: 0 | T18: 0 | U18: 0 | V18: 0 | W18: 0 | X18: 0 | Y18: 0 | Z18: 0 | AA18: х | AB18: х | AC18: х | AD18: 0;1 | AE18: =SUM(AE11:AE17) -> 0 | AF18: =SUM(AF11:AF17) -> 0
A19: - по ограничениям, связанным с проведением ремонтных работ | C19: х | D19: х | E19: х | F19: х | H19: х | J19: П | L19: =SUMIF(J$11:J$16,J19,L$11:L$16) -> 0 | M19: х | N19: х | O19: х | P19: =SUMIF(J$11:J$16,J19,P$11:P$16) -> 0 | Q19: =SUMIF(J$11:J$16,J19,Q$11:Q$16) -> 0 | R19: =SUMIF(J$11:J$16,J19,R$11:R$16) -> 0 | S19: =SUMIF(J$11:J$16,J19,S$11:S$16) -> 0 | T19: =SUMIF(J$11:J$16,J19,T$11:T$16) -> 0 | U19: =SUMIF(J$11:J$16,J19,U$11:U$16) -> 0 | V19: =SUMIF(J$11:J$16,J19,V$11:V$16) -> 0 | W19: =SUMIF(J$11:J$16,J19,W$11:W$16) -> 0 | X19: =SUMIF(J$11:J$16,J19,X$11:X$16) -> 0 | Y19: =SUMIF(J$11:J$16,J19,Y$11:Y$16) -> 0 | Z19: =SUMIF(J$11:J$16,J19,Z$11:Z$16) -> 0 | AA19: х | AB19: х | AC19: х | AD19: 0 | AE19: х | AF19: х
A20: - по аварийным ограничениям | C20: х | D20: х | E20: х | F20: х | H20: х | J20: А | L20: =SUMIF(J$11:J$16,J20,L$11:L$16) -> 0 | M20: х | N20: х | O20: х | P20: =SUMIF(J$11:J$16,J20,P$11:P$16) -> 0 | Q20: =SUMIF(J$11:J$16,J20,Q$11:Q$16) -> 0 | R20: =SUMIF(J$11:J$16,J20,R$11:R$16) -> 0 | S20: =SUMIF(J$11:J$16,J20,S$11:S$16) -> 0 | T20: =SUMIF(J$11:J$16,J20,T$11:T$16) -> 0 | U20: =SUMIF(J$11:J$16,J20,U$11:U$16) -> 0 | V20: =SUMIF(J$11:J$16,J20,V$11:V$16) -> 0 | W20: =SUMIF(J$11:J$16,J20,W$11:W$16) -> 0 | X20: =SUMIF(J$11:J$16,J20,X$11:X$16) -> 0 | Y20: =SUMIF(J$11:J$16,J20,Y$11:Y$16) -> 0 | Z20: =SUMIF(J$11:J$16,J20,Z$11:Z$16) -> 0 | AA20: х | AB20: х | AC20: х | AD20: 1 | AE20: х | AF20: х
A21: - по внерегламентным отключениям | C21: х | D21: х | E21: х | F21: х | H21: х | J21: В | L21: =SUMIF(J$11:J$16,J21,L$11:L$16) -> 0 | M21: х | N21: х | O21: х | P21: =SUMIF(J$11:J$16,J21,P$11:P$16) -> 0 | Q21: =SUMIF(J$11:J$16,J21,Q$11:Q$16) -> 0 | R21: =SUMIF(J$11:J$16,J21,R$11:R$16) -> 0 | S21: =SUMIF(J$11:J$16,J21,S$11:S$16) -> 0 | T21: =SUMIF(J$11:J$16,J21,T$11:T$16) -> 0 | U21: =SUMIF(J$11:J$16,J21,U$11:U$16) -> 0 | V21: =SUMIF(J$11:J$16,J21,V$11:V$16) -> 0 | W21: =SUMIF(J$11:J$16,J21,W$11:W$16) -> 0 | X21: =SUMIF(J$11:J$16,J21,X$11:X$16) -> 0 | Y21: =SUMIF(J$11:J$16,J21,Y$11:Y$16) -> 0 | Z21: =SUMIF(J$11:J$16,J21,Z$11:Z$16) -> 0 | AA21: х | AB21: х | AC21: х | AD21: 0;1 | AE21: х | AF21: х
A22: - по внерегламентным отключениям,учитываемым при расчете показателей надежности, в том числе индикативных показателей надежности | C22: х | D22: х | E22: х | F22: х | H22: х | J22: В1 | L22: =SUM((AD11:AD16=1)*(J11:K16=$J$21)*L11:L16) -> 0 | M22: х | N22: х | O22: х | P22: =SUM((AD11:AD16=1)*(J11:J16=$J$21)*P11:P16) -> 0 | Q22: =SUM((AD11:AD16=1)*(J11:J16=$J$21)*Q11:Q16) -> 0 | R22: =SUM((AD11:AD16=1)*(J11:J16=$J$21)*R11:R16) -> 0 | S22: =SUM((AD11:AD16=1)*(J11:J16=$J$21)*S11:S16) -> 0 | T22: =SUM((AD11:AD16=1)*(J11:J16=$J$21)*T11:T16) -> 0 | U22: =SUM((AD11:AD16=1)*(J11:J16=$J$21)*U11:U16) -> 0 | V22: =SUM((AD11:AD16=1)*(J11:J16=$J$21)*V11:V16) -> 0 | W22: =SUM((AD11:AD16=1)*(J11:J16=$J$21)*W11:W16) -> 0 | X22: =SUM((AD11:AD16=1)*(J11:J16=$J$21)*X11:X16) -> 0 | Y22: =SUM((AD11:AD16=1)*(J11:J16=$J$21)*Y11:Y16) -> 0 | Z22: =SUM((AD11:AD16=1)*(J11:J16=$J$21)*Z11:Z16) -> 0 | AA22: х | AB22: х | AC22: х | AD22: 1 | AE22: х | AF22: х
A26: Должность | R26: Ф. И. О.
A28: Примечание
A29: 1 Указываются наименования производственных отделений или предприятий электрических сетей.
A30: 2 "П" - плановое отключение, связанное с необходимостью проведения ремонтно-восстановительных работ в соответствии с разделом III Правил полного и (или) частичного ограничения режима потребления электрической энергии; "А" - аварийное ограничение, связанное с введением в действие графиков аварийного ограничения режима потребления в соответствии с пунктами 40-46 Правил полного и(или) частичного ограничения режима потребления электрической энергии; "В" - внерегламентное отключение в соответствии с пунктом 47 Правил полного и (или) частичного ограничения режима потребления электрической энергии
A31: 3 указывается 0 (ноль), если прекращение передачи электрической энергии не включается в расчет показателей надежности, что соответствует кодам организационных причин аварии в соответствии с приложением N 2 приказа Минэнерго России N 90 и в соответствии с положениями Методических указаний утв. приказом МИНЭНЕРГО № 1256 ; указывается 1 (один), если прекращение передачи электрической энергии включается в расчет показателей надежности, что соответствует кодам организационных причин аварии в соответствии с приложением N 2 приказа Минэнерго России N 90 и в соответствии с положениями Методических указаний утв. приказом МИНЭНЕРГО № 1256 ;.

Sheet TEHSHEET (hidden)
E7: Январь
E8: Февраль
E9: Март
E10: Апрель
E11: Май
E12: Июнь
E13: Июль
E14: Август
E15: Сентябрь
E16: Октябрь
E17: Ноябрь
E18: Декабрь
